Inv Transaction,Supplier Name,Headserv Name,Stratdir Name,Account Description ,Redact Name,Paid Date,Sum of Inv Amount
460285,ACORN RECOVERY PROJECTS,Public Health,Public Health,Residential Home Long Stay Fees,,24/09/14,"5,303.57 "
460285,AINSWORTH NURSING HOME,Adult Services,"Community, Adult & Adults Early Intervention",Residential Home Long Stay Fees,,24/09/14,"1,552.09 "
460285,APPLE COURT,Adult Services,"Community, Adult & Adults Early Intervention",Residential Home Long Stay Fees,,24/09/14,"2,070.00 "
460285,AUDEN HOUSE RESIDENTIAL HOME,Adult Services,"Community, Adult & Adults Early Intervention",Residential Home Long Stay Fees,,24/09/14,"8,713.95 "
460285,BALMORAL HOMES,Adult Services,"Community, Adult & Adults Early Intervention",Residents Long Stay Fee Income,,24/09/14,"-6,971.43 "
460285,BALMORAL HOMES,Adult Services,"Community, Adult & Adults Early Intervention",Residential Home Long Stay Fees,,24/09/14,"19,542.02 "
460285,BAMFORD GRANGE N/H,Adult Services,"Community, Adult & Adults Early Intervention",Residential Home Long Stay Fees,,24/09/14,"2,837.43 "
460285,BEECHFIELD LODGE,Adult Services,"Community, Adult & Adults Early Intervention",Residential Home Long Stay Fees,,24/09/14,"1,036.51 "
460285,BELMONT PARKHILL LTD,Adult Services,"Community, Adult & Adults Early Intervention",Residential Home Long Stay Fees,,24/09/14,"33,411.51 "
460285,BIRCHWOOD,Adult Services,"Community, Adult & Adults Early Intervention",Residential Home Long Stay Fees,,24/09/14,"2,607.19 "
460285,BLACKCLIFFE LTD,Adult Services,"Community, Adult & Adults Early Intervention",Residential Home Long Stay Fees,,24/09/14,"67,302.04 "
460285,BOURNE HOUSE RESIDENTIAL HOME,Adult Services,"Community, Adult & Adults Early Intervention",Residential Home Long Stay Fees,,24/09/14,"29,593.74 "
460285,BOWERFIELD COURT,Adult Services,"Community, Adult & Adults Early Intervention",Residential Home Long Stay Fees,,24/09/14,"3,175.71 "
460285,BOWLACRE HOME,Adult Services,"Community, Adult & Adults Early Intervention",Residential Home Long Stay Fees,,24/09/14,"13,265.86 "
460285,BROOKVALE,Adult Services,"Community, Adult & Adults Early Intervention",Residential Home Long Stay Fees,,24/09/14,"6,818.84 "
460285,BROUGHTON HOUSE HOME FOR  EX-SERVICE PERSONNEL,Adult Services,"Community, Adult & Adults Early Intervention",Residential Home Long Stay Fees,,24/09/14,909.41 
460285,BRYN HAVEN,Adult Services,"Community, Adult & Adults Early Intervention",Residential Home Long Stay Fees,Business Payment,24/09/14,973.62 
460285,CAMBIAN LEARNING DISABILITIES MIDLANDS LTD,Adult Services,"Community, Adult & Adults Early Intervention",Residential Home Long Stay Fees,,24/09/14,"19,580.97 "
460285,CARE UK HOMECARE,Adult Services,"Community, Adult & Adults Early Intervention",Residents Long Stay Fee Income,,24/09/14,475.24 
460285,CARE UK HOMECARE,Adult Services,"Community, Adult & Adults Early Intervention",Residential Home Long Stay Fees,,24/09/14,"60,930.92 "
460285,CARE UK LEARNING DISABILITIES SERVS LTD,Adult Services,"Community, Adult & Adults Early Intervention",Residential Home Long Stay Fees,,24/09/14,"10,809.26 "
460285,CHADDERTON TOTAL CAREUNIT LTD,Adult Services,"Community, Adult & Adults Early Intervention",Residential Home Long Stay Fees,,24/09/14,"6,671.55 "
460285,CHARNLEY HOUSE LIMITED,Adult Services,"Community, Adult & Adults Early Intervention",Residential Home Long Stay Fees,,24/09/14,"24,787.59 "
460285,CLARKSON HOUSE,Adult Services,"Community, Adult & Adults Early Intervention",Residential Home Long Stay Fees,,24/09/14,"18,454.40 "
460285,CLEARWATER CARE,Adult Services,"Community, Adult & Adults Early Intervention",Residential Home Long Stay Fees,,24/09/14,"3,511.86 "
460285,CLIFFEMOUNT COMMUNITY CARE,Adult Services,"Community, Adult & Adults Early Intervention",Residential Home Long Stay Fees,,24/09/14,"20,530.51 "
460285,COMPASS CARE LIMITED,Adult Services,"Community, Adult & Adults Early Intervention",Residential Home Long Stay Fees,,24/09/14,"4,462.18 "
460285,CYNGOR ALCOHOL INFORMATION SERVICE - CAIS,Public Health,Public Health,Residential Home Long Stay Fees,,24/09/14,"1,900.96 "
460285,DANSHELL HEALTHCARE LTD,Adult Services,"Community, Adult & Adults Early Intervention",Residential Home Long Stay Fees,,24/09/14,"17,080.00 "
460285,DOM POLSKI CARE HOME,Adult Services,"Community, Adult & Adults Early Intervention",Residential Home Long Stay Fees,,24/09/14,"1,815.64 "
460285,DRYCLOUGH MANOR CARE HOME,Adult Services,"Community, Adult & Adults Early Intervention",Residential Home Long Stay Fees,,24/09/14,"1,635.00 "
460285,EAGLE HOUSE CARE HOME,Adult Services,"Community, Adult & Adults Early Intervention",Residential Home Long Stay Fees,,24/09/14,"3,034.59 "
460285,EDGE HILL RESIDENTIAL HOME,Adult Services,"Community, Adult & Adults Early Intervention",Residential Home Long Stay Fees,,24/09/14,"1,881.43 "
460285,EHC MOSTON GRANGE LTD,Adult Services,"Community, Adult & Adults Early Intervention",Residential Home Long Stay Fees,,24/09/14,"41,913.75 "
460285,ELDER HOMES GROUP,Adult Services,"Community, Adult & Adults Early Intervention",Residents Long Stay Fee Income,,24/09/14,475.24 
460285,ELDER HOMES GROUP,Adult Services,"Community, Adult & Adults Early Intervention",Residential Home Long Stay Fees,,24/09/14,"46,403.36 "
460285,FAIRFIELD VIEW CARE LTD,Adult Services,"Community, Adult & Adults Early Intervention",Residential Home Long Stay Fees,,24/09/14,"44,166.15 "
460285,FERN BANK,Adult Services,"Community, Adult & Adults Early Intervention",Residential Home Long Stay Fees,,24/09/14,"21,733.29 "
460285,FIELDHOUSE CARE HOME,Adult Services,"Community, Adult & Adults Early Intervention",Residential Home Long Stay Fees,,24/09/14,"1,171.00 "
460285,FIRBANK HOUSE NURSING & RESIDENTIAL CARE HOME,Adult Services,"Community, Adult & Adults Early Intervention",Residential Home Long Stay Fees,,24/09/14,"13,952.88 "
460285,FOUR SEASONS (DFK) LTD T/AS ASHURST PARK CARE HOME,Adult Services,"Community, Adult & Adults Early Intervention",Residential Home Long Stay Fees,,24/09/14,"1,118.26 "
460285,FOUR SEASONS HEALTH CARE,Adult Services,"Community, Adult & Adults Early Intervention",Residential Home Long Stay Fees,,24/09/14,"31,673.65 "
460285,GLENROYD CARE HOME,Adult Services,"Community, Adult & Adults Early Intervention",Residential Home Long Stay Fees,,24/09/14,"1,729.20 "
460285,GRANGEFIELD,Adult Services,"Community, Adult & Adults Early Intervention",Residential Home Long Stay Fees,,24/09/14,995.68 
460285,GREEN PARK,Adult Services,"Community, Adult & Adults Early Intervention",Residential Home Long Stay Fees,,24/09/14,"9,936.00 "
460285,HATTON GRANGE,Adult Services,"Community, Adult & Adults Early Intervention",Residential Home Long Stay Fees,,24/09/14,"101,038.19 "
460285,HC ONE OF A KIND - GUIDE LANE,Adult Services,"Community, Adult & Adults Early Intervention",Residential Home Long Stay Fees,,24/09/14,"30,562.99 "
460285,HC ONE OF A KIND - KINGS PARK,Adult Services,"Community, Adult & Adults Early Intervention",Residential Home Long Stay Fees,,24/09/14,"43,901.30 "
460285,HC ONE OF A KIND - WINDSOR COURT,Adult Services,"Community, Adult & Adults Early Intervention",Residential Home Long Stay Fees,,24/09/14,"1,209.66 "
460285,HC-ONE LIMITED,Adult Services,"Community, Adult & Adults Early Intervention",Residential Home Long Stay Fees,,24/09/14,"1,096.78 "
460285,HOLME MANOR RESIDENTIAL CARE HOME,Adult Services,"Community, Adult & Adults Early Intervention",Residential Home Long Stay Fees,,24/09/14,"1,346.51 "
460285,JIGSAW CREATIVE CARE LIMITED,Adult Services,"Community, Adult & Adults Early Intervention",Residential Home Long Stay Fees,,24/09/14,"7,915.71 "
460285,L & M HEALTHCARE,Adult Services,"Community, Adult & Adults Early Intervention",Residential Home Long Stay Fees,,24/09/14,"2,403.81 "
460285,LAUREL BANK RESIDENTIAL CARE HOME LTD,Adult Services,"Community, Adult & Adults Early Intervention",Residential Home Long Stay Fees,,24/09/14,"9,424.84 "
460285,LIGHTBOWNE HALL,Adult Services,"Community, Adult & Adults Early Intervention",Residential Home Long Stay Fees,,24/09/14,"7,827.89 "
460285,LINWOOD PARK,Public Health,Public Health,Residential Home Long Stay Fees,,24/09/14,"3,392.85 "
460285,LOUTH CARE LTD,Adult Services,"Community, Adult & Adults Early Intervention",Residential Home Long Stay Fees,,24/09/14,"1,731.43 "
460285,LYNWOOD,Adult Services,"Community, Adult & Adults Early Intervention",Residential Home Long Stay Fees,,24/09/14,"1,982.14 "
460285,MARINERS COURT CARE HOME,Adult Services,"Community, Adult & Adults Early Intervention",Residential Home Long Stay Fees,,24/09/14,"1,893.00 "
460285,MARPLE DALE HALL LTD,Adult Services,"Community, Adult & Adults Early Intervention",Residential Home Long Stay Fees,,24/09/14,"2,616.18 "
460285,MERIDIAN HEALTHCARE LTD,Adult Services,"Community, Adult & Adults Early Intervention",Residents Long Stay Fee Income,,24/09/14,"4,429.06 "
460285,MERIDIAN HEALTHCARE LTD,Adult Services,"Community, Adult & Adults Early Intervention",Residential Home Long Stay Fees,,24/09/14,"696,190.27 "
460285,MOSS COTTAGE NURSING HOME,Adult Services,"Community, Adult & Adults Early Intervention",Residents Long Stay Fee Income,,24/09/14,"1,425.72 "
460285,MOSS COTTAGE NURSING HOME,Adult Services,"Community, Adult & Adults Early Intervention",Residential Home Long Stay Fees,,24/09/14,"33,994.58 "
460285,MRS P RUGGEE,Adult Services,"Community, Adult & Adults Early Intervention",Residential Home Long Stay Fees,Business Payment,24/09/14,"3,749.19 "
460285,OAKWOOD CARE CENTRE,Adult Services,"Community, Adult & Adults Early Intervention",Residential Home Long Stay Fees,,24/09/14,"12,280.19 "
460285,PARK VILLA (OWNED BY CARE UK),Adult Services,"Community, Adult & Adults Early Intervention",Residential Home Long Stay Fees,,24/09/14,"20,435.00 "
460285,PENDLEBURY CARE HOMES LTD,Adult Services,"Community, Adult & Adults Early Intervention",Residential Home Long Stay Fees,,24/09/14,"1,787.70 "
460285,PENNINE CARE CENTRE,Adult Services,"Community, Adult & Adults Early Intervention",Residential Home Long Stay Fees,,24/09/14,"3,601.69 "
460285,POLEBANK HALL RESIDENTIAL CARE HOME LTD,Adult Services,"Community, Adult & Adults Early Intervention",Residential Home Long Stay Fees,,24/09/14,"3,952.11 "
460285,PROGRESS ADULT SERVICES LIMITED,Adult Services,"Community, Adult & Adults Early Intervention",Residential Home Long Stay Fees,,24/09/14,"13,797.21 "
460285,SEYMOUR REST HOME,Adult Services,"Community, Adult & Adults Early Intervention",Residential Home Long Stay Fees,,24/09/14,"2,432.76 "
460285,SIGN,Adult Services,"Community, Adult & Adults Early Intervention",Residential Home Long Stay Fees,,24/09/14,"5,041.13 "
460285,SPINAL UNIT ACTION GROUP,Adult Services,"Community, Adult & Adults Early Intervention",Residential Home Long Stay Fees,,24/09/14,"4,042.03 "
460285,ST GEORGE'S NURSING HOME (OLDHAM) LTD,Adult Services,"Community, Adult & Adults Early Intervention",Residential Home Long Stay Fees,,24/09/14,"25,915.33 "
460285,ST GEORGE'S RESIDENTIAL CARE HOME,Adult Services,"Community, Adult & Adults Early Intervention",Residential Home Long Stay Fees,,24/09/14,766.58 
460285,ST LAWRENCES LODGE,Adult Services,"Community, Adult & Adults Early Intervention",Residential Home Long Stay Fees,,24/09/14,"1,519.42 "
460285,STALEY HOUSE EPH,Adult Services,"Community, Adult & Adults Early Intervention",Residential Home Long Stay Fees,,24/09/14,"18,575.61 "
460285,SUNNY BANK PRS LTD,Adult Services,"Community, Adult & Adults Early Intervention",Residential Home Long Stay Fees,,24/09/14,"2,636.11 "
460285,THE ALEXANDRA,Adult Services,"Community, Adult & Adults Early Intervention",Residential Home Long Stay Fees,,24/09/14,"1,881.43 "
460285,THE DAVID LEWIS CENTRE,Adult Services,"Community, Adult & Adults Early Intervention",Residential Home Long Stay Fees,,24/09/14,"4,866.47 "
460285,THE FREMANTLE TRUST,Adult Services,"Community, Adult & Adults Early Intervention",Residential Home Long Stay Fees,,24/09/14,"2,962.71 "
460285,THE HESLEY GROUP LTD,Adult Services,"Community, Adult & Adults Early Intervention",Residential Home Long Stay Fees,,24/09/14,"7,560.00 "
460285,THE JOSEPH COX CHARITY,Adult Services,"Community, Adult & Adults Early Intervention",Residential Home Long Stay Fees,,24/09/14,"3,522.43 "
460285,THE OLD VICARAGE,Adult Services,"Community, Adult & Adults Early Intervention",Residential Home Long Stay Fees,,24/09/14,"10,923.31 "
460285,THE ROYAL ELMS REST HOMES,Adult Services,"Community, Adult & Adults Early Intervention",Residential Home Long Stay Fees,,24/09/14,"1,782.17 "
460285,THE VICARAGE RESIDENTIAL CARE HOME,Adult Services,"Community, Adult & Adults Early Intervention",Residential Home Long Stay Fees,,24/09/14,"18,852.91 "
460285,THORNCLIFFE GRANGE NURSING HOME,Adult Services,"Community, Adult & Adults Early Intervention",Residential Home Long Stay Fees,,24/09/14,"36,246.47 "
460285,TURNING POINT,Adult Services,"Community, Adult & Adults Early Intervention",Residential Home Long Stay Fees,,24/09/14,"4,877.57 "
460285,TURNING POINT,Public Health,Public Health,Residential Home Long Stay Fees,,24/09/14,"3,365.02 "
460285,UNITED RESPONSE,Adult Services,"Community, Adult & Adults Early Intervention",Residential Home Long Stay Fees,,24/09/14,"6,172.54 "
460285,VICTORIA NURSING HOME,Adult Services,"Community, Adult & Adults Early Intervention",Residential Home Long Stay Fees,,24/09/14,"8,485.71 "
460285,WESTMINSTER HEALTH CARE LTD,Adult Services,"Community, Adult & Adults Early Intervention",Residential Home Long Stay Fees,,24/09/14,"5,979.23 "
460285,WINDMILL CARE HOME,Adult Services,"Community, Adult & Adults Early Intervention",Residential Home Long Stay Fees,,24/09/14,"1,945.29 "
460285,WOODLANDS RESIDENTIAL CARE HOME,Adult Services,"Community, Adult & Adults Early Intervention",Residential Home Long Stay Fees,,24/09/14,"9,761.84 "
460286,MERIDIAN HEALTHCARE LTD,Adult Services,"Community, Adult & Adults Early Intervention",Residential Home Long Stay Fees,,25/09/14,"37,635.76 "
470583,ACORN LIGHTING SERVICES LTD,Technical,Places,Sub-contractor Services,,01/09/14,"1,640.00 "
470583,AGGREGATE INDUSTRIES UK LIMITED,Technical,Places,General Materials,,01/09/14,"1,970.77 "
470583,BENCHMARK BUILDING SUPPLIES LTD,Civil Engineers,"Economic Growth, Investment and Sustainability",Debits Goods Received,,01/09/14,"1,292.60 "
470583,FAIRWAY LANDSCAPES LTD,Technical,Places,Sub-contractor Services,,01/09/14,"4,947.35 "
470583,MARWOOD ELECTRICAL CO,Civil Engineers,"Economic Growth, Investment and Sustainability",Debits Goods Received,,01/09/14,776.04 
470583,MARWOOD ELECTRICAL CO,Technical,Places,General Materials,,01/09/14,"5,399.10 "
470583,NEW CHARTER BUILD CO LTD,Technical,Places,Sub-contractor Services,,01/09/14,771.15 
470583,PG FABRICATIONS,Multiple Heads of Service,Multiple Strategic Directorates,Tax Retained Sub Contractors,,01/09/14,-115.20 
470583,PG FABRICATIONS,Technical,Places,General Materials,,01/09/14,42.00 
470583,PG FABRICATIONS,Technical,Places,Sub-contractor Services,,01/09/14,950.00 
470583,PREMIER WASTE (UK) LTD,Technical,Places,General Materials,,01/09/14,0.00 
470583,PREMIER WASTE (UK) LTD,Technical,Places,Sub-contractor Services,,01/09/14,"3,721.50 "
470583,REACTEC LIMITED,Technical,Places,General Materials,,01/09/14,800.00 
470583,REACTEC LIMITED,Technical,Places,Training Course Costs,,01/09/14,0.00 
470583,SECURETASK SECURITY LTD,Technical,Places,Sub-contractor Services,,01/09/14,"1,173.66 "
470584,AGGREGATE INDUSTRIES UK LIMITED,Technical,Places,General Materials,,10/09/14,"1,791.65 "
470584,ALTITUDE SERVICES,Technical,Places,Sub-contractor Services,,10/09/14,"2,213.09 "
470584,BENCHMARK BUILDING SUPPLIES LTD,Technical,Places,General Materials,,10/09/14,"1,797.74 "
470584,CASTINGS SERVICES NW LTD,Civil Engineers,"Economic Growth, Investment and Sustainability",Debits Goods Received,,10/09/14,"1,065.00 "
470584,EAGLE CIVIL ENGINEERING LTD,Technical,Places,General Materials,,10/09/14,"2,648.90 "
470584,EAGLE CIVIL ENGINEERING LTD,Technical,Places,Sub-contractor Services,,10/09/14,"1,843.93 "
470584,ELLIOTT GROUP LTD,Technical,Places,General Materials,,10/09/14,841.00 
470584,PG FABRICATIONS,Technical,Places,General Materials,,10/09/14,900.00 
470584,SECURETASK SECURITY LTD,Technical,Places,Sub-contractor Services,,10/09/14,"1,173.66 "
470584,TARMAC CENTRAL LIMITED,Technical,Places,General Materials,,10/09/14,"1,587.31 "
470584,W DAVENPORT,Multiple Heads of Service,Multiple Strategic Directorates,Tax Retained Sub Contractors,Business Payment,10/09/14,-148.40 
470584,W DAVENPORT,Technical,Places,Sub-contractor Services,Business Payment,10/09/14,742.00 
470584,ZODION LTD,Engineers Client,"Economic Growth, Investment and Sustainability",General Materials,,10/09/14,"2,209.41 "
470585,AGGREGATE INDUSTRIES UK LIMITED,Technical,Places,General Materials,,15/09/14,"2,170.19 "
470585,GRAFTON MERCHANTING GB LTD,Civil Engineers,"Economic Growth, Investment and Sustainability",Debits Goods Received,,15/09/14,"1,041.50 "
470585,INSTARMAC GROUP PLC,Civil Engineers,"Economic Growth, Investment and Sustainability",Debits Goods Received,,15/09/14,839.20 
470585,J HOPKINS CONTRACTORS  LTD,Civil Engineers,"Economic Growth, Investment and Sustainability",Debits Goods Received,,15/09/14,216.21 
470585,J HOPKINS CONTRACTORS  LTD,Technical,Places,General Materials,,15/09/14,296.85 
470585,MALLATITE LTD,Civil Engineers,"Economic Growth, Investment and Sustainability",Debits Goods Received,,15/09/14,598.20 
470585,MALLATITE LTD,Technical,Places,General Materials,,15/09/14,"14,782.50 "
470585,MALLATITE LTD,Technical,Places,Stores Purchases,,15/09/14,150.00 
470585,P CASEY (ENVIRO) LTD,Technical,Places,General Materials,,15/09/14,"17,138.04 "
470585,P F CUSACK LTD,Civil Engineers,"Economic Growth, Investment and Sustainability",Debits Goods Received,,15/09/14,"1,034.60 "
470585,SECURETASK SECURITY LTD,Technical,Places,Sub-contractor Services,,15/09/14,"1,173.66 "
470585,STALYBRIDGE READYMIX LTD,Technical,Places,General Materials,,15/09/14,"8,511.00 "
470585,STOCKPORT MBC,Technical,Places,General Materials,,15/09/14,"2,087.81 "
470585,TARMAC CENTRAL LIMITED,Civil Engineers,"Economic Growth, Investment and Sustainability",Debits Goods Received,,15/09/14,"3,169.96 "
470585,VIRIDOR,Technical,Places,General Materials,,15/09/14,"2,657.28 "
470586,ACE SAFETY ACADEMY,Technical,Places,Training Course Costs,,22/09/14,650.00 
470586,ACORN LIGHTING SERVICES LTD,Technical,Places,Sub-contractor Services,,22/09/14,"11,280.00 "
470586,AGGREGATE INDUSTRIES UK LIMITED,Technical,Places,General Materials,,22/09/14,781.26 
470586,AJC ROAD SWEEPERS,Technical,Places,Sub-contractor Services,,22/09/14,875.00 
470586,AMBERON LTD,Technical,Places,Additional Hire,,22/09/14,"1,104.29 "
470586,ARCO LIMITED,Civil Engineers,"Economic Growth, Investment and Sustainability",Debits Goods Received,,22/09/14,209.19 
470586,ARCO LIMITED,Neighbourhoods & Communities,"Community, Adult & Adults Early Intervention",General Materials,,22/09/14,11.96 
470586,ARCO LIMITED,Technical,Places,General Materials,,22/09/14,499.25 
470586,BENCHMARK BUILDING SUPPLIES LTD,Civil Engineers,"Economic Growth, Investment and Sustainability",Debits Goods Received,,22/09/14,25.90 
470586,BENCHMARK BUILDING SUPPLIES LTD,Technical,Places,General Materials,,22/09/14,597.22 
470586,BLOK N MESH UK LTD,Technical,Places,General Materials,,22/09/14,"2,009.00 "
470586,CARRIER RENTAL SYSTEMS (UK) LIMITED,Technical,Places,General Materials,,22/09/14,630.00 
470586,CBS (NORTH WEST) LTD,Technical,Places,Sub-contractor Services,,22/09/14,"1,861.20 "
470586,EAGLE CIVIL ENGINEERING LTD,Technical,Places,Sub-contractor Services,,22/09/14,"5,680.97 "
470586,FAIRWAY LANDSCAPES LTD,Technical,Places,Sub-contractor Services,,22/09/14,"6,247.50 "
470586,GREENHAM TRADING LIMITED,Technical,Places,General Materials,,22/09/14,"1,399.50 "
470586,HIGHWAYS TRAINING ASSOCIATES LTD,Technical,Places,General Materials,,22/09/14,"1,975.00 "
470586,JEWSON LTD,Technical,Places,General Materials,,22/09/14,"2,390.16 "
470586,P P O'CONNOR,Technical,Places,General Materials,Business Payment,22/09/14,540.00 
470586,STALYBRIDGE READYMIX LTD,Technical,Places,General Materials,,22/09/14,"8,627.00 "
470586,TARMAC CENTRAL LIMITED,Civil Engineers,"Economic Growth, Investment and Sustainability",Debits Goods Received,,22/09/14,"1,574.54 "
470586,TARMAC CENTRAL LIMITED,Technical,Places,General Materials,,22/09/14,"1,274.95 "
470586,W & B FORMWORK CO 1990,Technical,Places,Sub-contractor Services,,22/09/14,"14,250.00 "
470586,W DAVENPORT,Multiple Heads of Service,Multiple Strategic Directorates,Tax Retained Sub Contractors,Business Payment,22/09/14,-148.40 
470586,W DAVENPORT,Technical,Places,Sub-contractor Services,Business Payment,22/09/14,742.00 
3250473,ATS EUROMASTER LTD,Technical,Places,Tyre Costs,,04/09/14,"4,678.52 "
3250473,AUTO BATTERY SERVICE LTD,Technical,Places,General Materials,,04/09/14,921.75 
3250473,AUTO BATTERY SERVICE LTD,Transport,"Economic Growth, Investment and Sustainability",Debits Goods Received,,04/09/14,252.02 
3250473,BPP TRANSPORT ENGINEERS LTD,Technical,Places,General Materials,,04/09/14,155.90 
3250473,BPP TRANSPORT ENGINEERS LTD,Technical,Places,Tyre Costs,,04/09/14,493.97 
3250473,BURNT TREE GROUP LIMITED,Technical,Places,General Materials,,04/09/14,798.00 
3250473,BURNT TREE GROUP LIMITED,Technical,Places,Workshop Recharges including Misuse & Damage Costs,,04/09/14,207.00 
3250473,DENNIS EAGLE LTD,Technical,Places,General Materials,,04/09/14,"2,636.75 "
3250473,F & G COMMERCIALS (OLDHAM) LIMITED,Technical,Places,General Materials,,04/09/14,540.87 
3250473,F. R. SHARROCK LIMITED,Technical,Places,General Materials,,04/09/14,553.78 
3250473,F. R. SHARROCK LIMITED,Transport,"Economic Growth, Investment and Sustainability",Debits Goods Received,,04/09/14,349.34 
3250473,FAUN ZOELLER (UK) LTD,Technical,Places,General Materials,,04/09/14,631.02 
3250473,FAUN ZOELLER (UK) LTD,Transport,"Economic Growth, Investment and Sustainability",Debits Goods Received,,04/09/14,99.96 
3250473,FREIGHT TRANSPORT ASSOCIATION,Technical,Places,Vehicle Inspection/Testing Costs,,05/09/14,"1,490.01 "
3250473,G B OILS TA CARLTON FUELS,Transport,"Economic Growth, Investment and Sustainability",Diesel Fuel,,04/09/14,"54,128.00 "
3250473,G B OILS TA CARLTON FUELS,Transport,"Economic Growth, Investment and Sustainability",Petrol Fuel,,04/09/14,"2,616.30 "
3250473,HI-Q TYRESERVICES,Technical,Places,Tyre Costs,,04/09/14,"1,656.01 "
3250473,JOHNSTON SWEEPERS LTD,Technical,Places,General Materials,,04/09/14,"3,639.53 "
3250473,JOHNSTON SWEEPERS LTD,Transport,"Economic Growth, Investment and Sustainability",Debits Goods Received,,04/09/14,269.94 
3250473,N A BROWN LTD,Transport,"Economic Growth, Investment and Sustainability",Debits Goods Received,,04/09/14,870.00 
3250473,PEAK PARTS,Technical,Places,Consumable Materials,,04/09/14,"1,102.14 "
3250473,PEAK PARTS,Technical,Places,General Materials,,04/09/14,21.18 
3250473,STOCKPORT TRUCK CENTRE LTD,Technical,Places,General Materials,,04/09/14,607.82 
3250473,STOCKPORT TRUCK CENTRE LTD,Technical,Places,Vehicle Inspection/Testing Costs,,04/09/14,210.00 
3250473,TERBERG MATEC UK LTD,Technical,Places,General Materials,,05/09/14,507.80 
3250474,ARNOLD PLANT HIRE LTD,Technical,Places,Additional Hire,,11/09/14,980.00 
3250474,ARNOLD PLANT HIRE LTD,Technical,Places,Replacement Hire,,11/09/14,987.00 
3250474,BURNT TREE GROUP LIMITED,Technical,Places,Additional Hire,,11/09/14,"1,044.60 "
3250474,G B OILS TA CARLTON FUELS,Transport,"Economic Growth, Investment and Sustainability",Diesel Fuel,,11/09/14,"22,274.70 "
3250474,HI-Q TYRESERVICES,Technical,Places,Tyre Costs,,11/09/14,"1,595.96 "
3250474,M T KAILL(PLANT HIRE)LTD,Technical,Places,Additional Hire,,11/09/14,744.00 
3250474,M T KAILL(PLANT HIRE)LTD,Technical,Places,Workshop Recharges including Misuse & Damage Costs,,11/09/14,181.70 
3250474,SHB HIRE LTD,Technical,Places,Additional Hire,,11/09/14,"1,155.00 "
3250474,SHB HIRE LTD,Technical,Places,Core Hire,,11/09/14,"13,694.25 "
3250474,SHB HIRE LTD,Technical,Places,Replacement Hire,,11/09/14,433.00 
3250474,THE SUNLIGHT SERVICE GROUP LTD,Technical,Places,Cleaning Materials,,11/09/14,249.68 
3250474,THE SUNLIGHT SERVICE GROUP LTD,Technical,Places,Protective Clothing,,11/09/14,251.00 
3250475,A & K ENGINEERING SERVICES,Technical,Places,General Materials,,18/09/14,635.00 
3250475,A & K ENGINEERING SERVICES,Transport,"Economic Growth, Investment and Sustainability",Debits Goods Received,,18/09/14,310.00 
3250475,ARNOLD PLANT HIRE LTD,Technical,Places,Additional Hire,,18/09/14,70.00 
3250475,ARNOLD PLANT HIRE LTD,Technical,Places,General Materials,,18/09/14,593.98 
3250475,ARNOLD PLANT HIRE LTD,Technical,Places,Workshop Recharges including Misuse & Damage Costs,,18/09/14,64.90 
3250475,ATS EUROMASTER LTD,Technical,Places,General Materials,,18/09/14,21.08 
3250475,ATS EUROMASTER LTD,Technical,Places,Tyre Costs,,18/09/14,"5,966.28 "
3250475,BURNT TREE GROUP LIMITED,Technical,Places,Additional Hire,,18/09/14,"2,050.00 "
3250475,BURNT TREE GROUP LIMITED,Technical,Places,Core Hire,,18/09/14,"1,197.00 "
3250475,DENNIS EAGLE LTD,Technical,Places,General Materials,,18/09/14,"2,809.85 "
3250475,DENNIS EAGLE LTD,Transport,"Economic Growth, Investment and Sustainability",Debits Goods Received,,18/09/14,273.52 
3250475,ECON ENGINEERING LTD,Technical,Places,General Materials,,18/09/14,"1,466.83 "
3250475,G B OILS TA CARLTON FUELS,Transport,"Economic Growth, Investment and Sustainability",Gas - Oil Fuel,,18/09/14,"5,956.60 "
3250475,GUNN JCB LTD,Technical,Places,General Materials,,18/09/14,69.81 
3250475,GUNN JCB LTD,Transport,"Economic Growth, Investment and Sustainability",Debits Goods Received,,18/09/14,516.40 
3250475,HI-Q TYRESERVICES,Technical,Places,Tyre Costs,,18/09/14,"2,983.93 "
3250475,I H S HOSEMASTER,Technical,Places,General Materials,,18/09/14,982.12 
3250475,JNL ENGINEERING LIMITED,Technical,Places,General Materials,,18/09/14,"1,044.50 "
3250475,JOHNSTON SWEEPERS LTD,Technical,Places,General Materials,,18/09/14,"3,651.16 "
3250475,LPW TRUCKWASH LTD,Technical,Places,Building Repairs,,18/09/14,"4,438.04 "
3250475,PEAK PARTS,Technical,Places,Consumable Materials,,18/09/14,464.58 
3250475,PEAK PARTS,Technical,Places,General Equipment Purchase,,18/09/14,48.50 
3250475,PEAK PARTS,Technical,Places,General Materials,,18/09/14,161.88 
3250475,STOCKPORT TRUCK CENTRE LTD,Technical,Places,General Equipment Repair & Maintenance,,18/09/14,"1,500.00 "
3250475,STOCKPORT TRUCK CENTRE LTD,Technical,Places,General Materials,,18/09/14,788.82 
3250475,TERBERG MATEC UK LTD,Technical,Places,General Materials,,18/09/14,525.26 
3250476,DENNIS EAGLE LTD,Technical,Places,General Materials,,25/09/14,"2,884.47 "
3250476,F G ROWLAND LTD,Technical,Places,Core Hire,,25/09/14,845.00 
3250476,G B OILS TA CARLTON FUELS,Transport,"Economic Growth, Investment and Sustainability",Diesel Fuel,,25/09/14,"22,276.80 "
3250476,GUNN JCB LTD,Technical,Places,General Materials,,25/09/14,617.02 
3250476,HI-Q TYRESERVICES,Technical,Places,Tyre Costs,,25/09/14,"1,733.77 "
3250476,LPW TRUCKWASH LTD,Technical,Places,General Equipment Repair & Maintenance,,25/09/14,504.00 
3250476,N A BROWN LTD,Transport,"Economic Growth, Investment and Sustainability",Debits Goods Received,,25/09/14,"1,249.00 "
3250476,TOLLAND PRECISION ENGINEERING LTD,Technical,Places,General Materials,,25/09/14,"1,517.25 "
3250476,TOLLAND PRECISION ENGINEERING LTD,Transport,"Economic Growth, Investment and Sustainability",Debits Goods Received,,25/09/14,186.75 
5153571,ASHTON-UNDER-LYNE MASONIC CLUB,Adult Services,"Community, Adult & Adults Early Intervention",Non-Authority Accommodation Rental,,22/09/14,150.00 
5153571,ASHTON-UNDER-LYNE MASONIC CLUB,Adult Services,"Community, Adult & Adults Early Intervention",Refreshments,,22/09/14,352.00 
5155406,NHS TAMESIDE AND GLOSSOP CCG,Chief Executive,Director of Finance,Miscellaneous Expenses,,05/09/14,"5,986.40 "
5156801,THE FURNISHING SERVICE LTD,Neighbourhoods & Communities,"Community, Adult & Adults Early Intervention",Fixtures & Fittings Purchase,,10/09/14,875.46 
5158379,PENNINE CARE NHS TRUST,Public Health,Public Health,Professional Services,,17/09/14,"12,000.00 "
5158538,ENVIRONMENT AGENCY NW,Technical,Places,Land Drainage Levy,,25/09/14,"25,913.75 "
5158579,GREATER MANCHESTER COMBINED AUTHORITY,Technical,Places,Passenger Transport Levy,,10/09/14,"1,614,500.00 "
5158720,GREATER MANCHESTER WASTE DISPOSAL AUTH.,Environmental Services,Places,GMC Waste Disposal Levy,,18/09/14,"1,478,750.00 "
5159889,GREATER MANCHESTER PROBATION TRUST,Public Health,Public Health,Professional Interpreter Services,,01/09/14,"1,858.99 "
5162101,SCC CONSULTANCY LIMITED,Education Services,Childrens Services,Professional Services,,05/09/14,"3,600.00 "
5162695,NETWORK CONNECT LTD,Digital Tameside,Places,It Equipment,,08/09/14,530.66 
5162919,SCC CONSULTANCY LIMITED,Education Services,Childrens Services,Professional Services,,05/09/14,"3,600.00 "
5163285,NORTHGATE INFORMATION SOLUTIONS UK LTD,Neighbourhoods & Communities,"Community, Adult & Adults Early Intervention",Computer Hardware Purchase,,15/09/14,"1,442.41 "
5163793,RANDSTAD EDUCATION LIMITED,Education Services,Childrens Services,Voluntary Organisations Fees,,18/09/14,720.00 
5163986,PENNINE CARE NHS TRUST,Children's Services,Childrens Services,Professional Child Services,,17/09/14,"3,022.80 "
5164327,GREATER MANCHESTER COMBINED AUTHORITY,Technical,Places,Passenger Transport Levy,,29/09/14,"1,614,500.00 "
5164396,THE FURNISHING SERVICE LTD,Neighbourhoods & Communities,"Community, Adult & Adults Early Intervention",Fixtures & Fittings Purchase,,10/09/14,"1,154.55 "
5164953,TEACHING PERSONNEL LTD,Education Services,Childrens Services,Voluntary Organisations Fees,,03/09/14,744.00 
5165042,NETWORK CONNECT LTD,Children's Services,Childrens Services,Building Maintenance,,10/09/14,"1,181.55 "
5165517,NETWORK CONNECT LTD,Children's Services,Childrens Services,Building Maintenance,,10/09/14,565.66 
5165645,THE FURNISHING SERVICE LTD,Neighbourhoods & Communities,"Community, Adult & Adults Early Intervention",Fixtures & Fittings Purchase,,11/09/14,570.89 
5166019,THE FURNISHING SERVICE LTD,Neighbourhoods & Communities,"Community, Adult & Adults Early Intervention",Fixtures & Fittings Purchase,,04/09/14,678.83 
5166141,THE FURNISHING SERVICE LTD,Neighbourhoods & Communities,"Community, Adult & Adults Early Intervention",Fixtures & Fittings Purchase,,11/09/14,"1,807.90 "
5166362,ENVIRONMENT AGENCY,Technical,Places,Licences,,10/09/14,"3,923.50 "
5166676,,Children's Services,Childrens Services,Foster Carer Agency Fees,Redacted Supplier,08/09/14,"4,248.89 "
5166807,,Children's Services,Childrens Services,Foster Carer Agency Fees,Redacted Supplier,08/09/14,"4,185.00 "
5166809,LOCAL GOVERNMENT ASSOCIATION,Sustainable Growth,Places,Legal Fees,,25/09/14,"2,822.02 "
5166894,RED ARCHITECTURAL PENSION  SCHEME,Tameside Investment Partnership,Places,Building Maintenance,,24/09/14,"15,750.00 "
5167316,COACHFINDER LIMITED,People & Performance,Director of Governance,Professional Entertainment Services,,15/09/14,"2,920.00 "
5167691,JAMES BUTTON & CO SOLICITORS,Environmental Services,Places,Subscriptions,,10/09/14,610.00 
5167867,ARCO LIMITED,Adult Services,"Community, Adult & Adults Early Intervention",Uniforms/Clothing,,24/09/14,"1,177.98 "
5168049,NORTHGATE INFORMATION SOLUTIONS UK LTD,Neighbourhoods & Communities,"Community, Adult & Adults Early Intervention",Computer Hardware Purchase,,15/09/14,"1,071.80 "
5168481,WIGAN MBC,NWEGG,Places,Room Hire,,29/09/14,752.00 
5169157,ADI UK LTD,Neighbourhoods & Communities,"Community, Adult & Adults Early Intervention",Professional Entertainment Services,,11/09/14,"1,750.00 "
5169286,THE FURNISHING SERVICE LTD,Neighbourhoods & Communities,"Community, Adult & Adults Early Intervention",Fixtures & Fittings Purchase,,11/09/14,657.77 
5169385,THE FURNISHING SERVICE LTD,Neighbourhoods & Communities,"Community, Adult & Adults Early Intervention",Fixtures & Fittings Purchase,,10/09/14,802.04 
5169475,NHS TAMESIDE AND GLOSSOP CCG,Chief Executive,Director of Finance,Miscellaneous Expenses,,29/09/14,"7,600.88 "
5169511,NHS TAMESIDE AND GLOSSOP CCG,Chief Executive,Director of Finance,Miscellaneous Expenses,,29/09/14,"5,305.08 "
5169512,THE FURNISHING SERVICE LTD,Neighbourhoods & Communities,"Community, Adult & Adults Early Intervention",Fixtures & Fittings Purchase,,10/09/14,617.47 
5169640,D.A. LANGUAGES LTD,Children's Services,Childrens Services,Professional Interpreter Services,,15/09/14,"1,460.70 "
5169647,M.C. & M.A. STEWART HAULAGE LTD,Operations,Places,General Materials,,17/09/14,"1,658.80 "
5169652,M.C. & M.A. STEWART HAULAGE LTD,Operations,Places,General Materials,,17/09/14,793.75 
5169715,BERTRAM LIBRARY SERVICES,Education Services,Childrens Services,Text Books Periodicals and Newspapers,,04/09/14,730.65 
5169751,THE FURNISHING SERVICE LTD,Neighbourhoods & Communities,"Community, Adult & Adults Early Intervention",Fixtures & Fittings Purchase,,10/09/14,"1,205.46 "
5169823,HM COURTS AND TRIBUNALS SERVICE,Housing,"Economic Growth, Investment and Sustainability",External  Consultants,,18/09/14,"23,512.33 "
5169861,THE FURNISHING SERVICE LTD,Neighbourhoods & Communities,"Community, Adult & Adults Early Intervention",Fixtures & Fittings Purchase,,10/09/14,606.01 
5169869,UPDATA INFRASTRUCTURE UK LTD,Multiple Heads of Service,Multiple Strategic Directorates,Communications Equipment,,04/09/14,"6,674.00 "
5169908,NETWORK RAIL INFRASTRUCTURE LTD,Engineers Client,"Economic Growth, Investment and Sustainability",Engineers -External,,03/09/14,"1,476.31 "
5169913,ZOOM MEDIA,Technical,Places,Statutory Advertising,,17/09/14,"1,745.00 "
5169918,STOCKPORT NHS FOUNDATION TRUST,Public Health,Public Health,Professional Services,,04/09/14,"289,595.00 "
5169991,,Children's Services,Childrens Services,Foster Carer Agency Fees,Redacted Supplier,08/09/14,"4,111.83 "
5170046,ALLIED PIPEFREEZING SERVICES LIMITED,Engineers Client,"Economic Growth, Investment and Sustainability",Engineers -External,,01/09/14,992.08 
5170048,SICO EUROPE LIMITED,Asset Mgmt & Investment Partnership Mgmt,Places,Postages,,08/09/14,11.48 
5170048,SICO EUROPE LIMITED,Asset Mgmt & Investment Partnership Mgmt,Places,Purchase Heavy Catering Equipment,,08/09/14,499.85 
5170072,FFT EDUCATION LTD,Education Services,Childrens Services,Subscriptions,,04/09/14,600.00 
5170226,WILLIAMS WOODWARD LTD,Resource Management,Director of Finance,Professional Consultancy Services,,01/09/14,"2,905.00 "
5170238,NORTHGATE INFORMATION SOLUTIONS UK LTD,Neighbourhoods & Communities,"Community, Adult & Adults Early Intervention",Computer Hardware Purchase,,15/09/14,"1,721.64 "
5170306,INTERFERENCE-ART,Neighbourhoods & Communities,"Community, Adult & Adults Early Intervention",Professional Entertainment Services,,05/09/14,"1,400.00 "
5170361,XEROX (UK) LIMITED,"Media, Marketing & Communications",Director of Governance,Printing And Stationery,,03/09/14,"6,325.90 "
5170364,CALLROUND LIMITED,Education Services,Childrens Services,Professional Services,,03/09/14,800.00 
5170370,UPLIFTING UPHOLSTERY,Adult Services,"Community, Adult & Adults Early Intervention",Fixtures & Fittings Purchase,,05/09/14,999.00 
5170382,OSMIS EDUCATION LIMITED,Digital Tameside,Places,Professional Services,,03/09/14,"3,275.00 "
5170388,LOUISE LIGHTFOOT,Education Services,Childrens Services,Professional Services,Business Payment,04/09/14,800.00 
5170404,,Children's Services,Childrens Services,Childrens Homes Outside Local Authority Fees,Redacted Supplier,01/09/14,"8,910.71 "
5170678,,Children's Services,Childrens Services,Foster Carer Agency Fees,Redacted Supplier,04/09/14,"3,931.52 "
5170695,THE FURNISHING SERVICE LTD,Neighbourhoods & Communities,"Community, Adult & Adults Early Intervention",Fixtures & Fittings Purchase,,10/09/14,610.99 
5170747,,Children's Services,Childrens Services,Foster Carer Agency Fees,Redacted Supplier,04/09/14,"3,575.85 "
5170758,MRL HEALTHCARE LIMITED,Adult Services,"Community, Adult & Adults Early Intervention",Homecare Fees,,01/09/14,"13,335.71 "
5170767,COMMUNITY BROADBAND NETWORK,"Media, Marketing & Communications",Director of Governance,Professional Consultancy Services,,04/09/14,627.87 
5170768,COMMUNITY BROADBAND NETWORK,"Media, Marketing & Communications",Director of Governance,Professional Consultancy Services,,04/09/14,"5,130.00 "
5170788,MOBIL8 SOLUTIONS LTD,Digital Tameside,Places,Computer Software,,04/09/14,"18,900.00 "
5170812,NABMA,Technical,Places,Conference/Seminar Expenses For Staff,,03/09/14,"1,000.00 "
5170830,THE FURNISHING SERVICE LTD,Neighbourhoods & Communities,"Community, Adult & Adults Early Intervention",Fixtures & Fittings Purchase,,10/09/14,589.78 
5170844,THE FURNISHING SERVICE LTD,Neighbourhoods & Communities,"Community, Adult & Adults Early Intervention",Fixtures & Fittings Purchase,,10/09/14,858.64 
5170857,FOUNTAINS & FEATURES LIMITED,Operations,Places,General Materials,,08/09/14,775.50 
5170858,FOUNTAINS & FEATURES LIMITED,Operations,Places,General Materials,,08/09/14,868.00 
5170945,METRONET (UK) LIMITED,Neighbourhoods & Communities,"Community, Adult & Adults Early Intervention",General Materials,,04/09/14,"19,800.00 "
5170946,WILLIAMS WOODWARD LTD,Resource Management,Director of Finance,Professional Consultancy Services,,08/09/14,"2,490.00 "
5170971,KINGFISHER CONSULTING,Technical,Places,Engineers Works,,10/09/14,762.15 
5170974,KALAMAZOO SECURE SOLUTIONS LTD,Resource Management,Director of Finance,Postages,,03/09/14,12.95 
5170974,KALAMAZOO SECURE SOLUTIONS LTD,Resource Management,Director of Finance,Printing And Stationery,,03/09/14,660.00 
5170993,THYSSENKRUPP ENCASA LTD,Housing,"Economic Growth, Investment and Sustainability",Improvement Grants - Final Mandatory,,01/09/14,"2,184.50 "
5170994,HANDICARE LIMITED,Housing,"Economic Growth, Investment and Sustainability",Improvement Grants - Final Mandatory,,04/09/14,"2,428.00 "
5171012,THE FURNISHING SERVICE LTD,Neighbourhoods & Communities,"Community, Adult & Adults Early Intervention",Fixtures & Fittings Purchase,,10/09/14,749.00 
5171017,THE FURNISHING SERVICE LTD,Neighbourhoods & Communities,"Community, Adult & Adults Early Intervention",Fixtures & Fittings Purchase,,10/09/14,"1,282.16 "
5171034,THE FEDERATION OF GROUNDWORKS TRUST (GROUNDWORK UK),Other Services,Director of Finance,Contributions,,03/09/14,"15,000.00 "
5171040,BROXAP LIMITED,Operations,Places,General Materials,,04/09/14,"1,350.00 "
5171075,MACK 4 LIMITED,Housing,"Economic Growth, Investment and Sustainability",Improvement Grants - Final Mandatory,,05/09/14,"4,385.00 "
5171136,M NELSON & SON,Technical,Places,Engineers Works,,01/09/14,"5,865.00 "
5171137,P F CUSACK LTD,Operations,Places,General Materials,,10/09/14,776.00 
5171184,THE FURNISHING SERVICE LTD,Neighbourhoods & Communities,"Community, Adult & Adults Early Intervention",Fixtures & Fittings Purchase,,10/09/14,866.75 
5171188,THE FURNISHING SERVICE LTD,Neighbourhoods & Communities,"Community, Adult & Adults Early Intervention",Fixtures & Fittings Purchase,,10/09/14,771.57 
5171215,CREATIVE SUPPORT LTD,Adult Services,"Community, Adult & Adults Early Intervention",Homecare Fees,,17/09/14,"79,445.25 "
5171216,CREATIVE SUPPORT LTD,Adult Services,"Community, Adult & Adults Early Intervention",Homecare Fees,,17/09/14,"124,890.83 "
5171217,CREATIVE SUPPORT LTD,Adult Services,"Community, Adult & Adults Early Intervention",Homecare Fees,,17/09/14,"84,992.92 "
5171338,NEW CHARTER HOUSING TRUST GROUP,Strategy & Early Intervention,Childrens Services,Professional Services,,01/09/14,"79,200.00 "
5171352,ENLIGHTKS LTD,Sustainable Growth,Places,Examination Fees,,04/09/14,"1,125.00 "
5171358,SPRINGBOK,Neighbourhoods & Communities,"Community, Adult & Adults Early Intervention",Professional Entertainment Services,,03/09/14,500.00 
5171384,WIRRAL COMMUNITY NHS TRUST,Public Health,Public Health,Professional Services,,08/09/14,"1,540.00 "
5171401,MADELEINE LINDLEY LTD,Public Health,Public Health,Purchase Books,,11/09/14,"6,555.60 "
5171408,MADELEINE LINDLEY LTD,Strategy & Early Intervention,Childrens Services,Purchase Books,,11/09/14,"1,576.65 "
5171477,,Children's Services,Childrens Services,Childrens Homes Outside Local Authority Fees,Redacted Supplier,04/09/14,"13,980.00 "
5171488,MRL HEALTHCARE LIMITED,Adult Services,"Community, Adult & Adults Early Intervention",Homecare Fees,,08/09/14,"13,220.59 "
5171512,NEW CHARTER HOUSING TRUST GROUP,Strategy & Early Intervention,Childrens Services,Professional Services,,01/09/14,"40,000.00 "
5171515,,Children's Services,Childrens Services,Cash Grants,Redacted Supplier,15/09/14,"3,947.50 "
5171516,,Children's Services,Childrens Services,Cash Grants,Redacted Supplier,15/09/14,"3,947.50 "
5171518,,Children's Services,Childrens Services,Cash Grants,Redacted Supplier,15/09/14,"3,947.50 "
5171519,,Children's Services,Childrens Services,Cash Grants,Redacted Supplier,15/09/14,"3,947.50 "
5171521,,Children's Services,Childrens Services,Childrens Homes Outside Local Authority Fees,Redacted Supplier,15/09/14,"13,017.90 "
5171524,,Children's Services,Childrens Services,Childrens Homes Outside Local Authority Fees,Redacted Supplier,15/09/14,"16,500.00 "
5171527,HANDICARE LIMITED,Housing,"Economic Growth, Investment and Sustainability",Improvement Grants - Final Mandatory,,04/09/14,"1,377.00 "
5171528,HOIST & SHOWER CHAIR CO,Housing,"Economic Growth, Investment and Sustainability",Improvement Grants - Final Mandatory,,04/09/14,"2,480.00 "
5171535,MALCOLM HOLT,Adult Services,"Community, Adult & Adults Early Intervention",Fixtures & Fittings Purchase,Business Payment,15/09/14,"1,750.00 "
5171543,THE FURNISHING SERVICE LTD,Neighbourhoods & Communities,"Community, Adult & Adults Early Intervention",Fixtures & Fittings Purchase,,11/09/14,"1,067.03 "
5171545,THE FURNISHING SERVICE LTD,Neighbourhoods & Communities,"Community, Adult & Adults Early Intervention",Fixtures & Fittings Purchase,,11/09/14,550.54 
5171549,THE FURNISHING SERVICE LTD,Neighbourhoods & Communities,"Community, Adult & Adults Early Intervention",Fixtures & Fittings Purchase,,10/09/14,"1,022.11 "
5171553,THE FURNISHING SERVICE LTD,Neighbourhoods & Communities,"Community, Adult & Adults Early Intervention",Fixtures & Fittings Purchase,,11/09/14,654.74 
5171557,THE FURNISHING SERVICE LTD,Neighbourhoods & Communities,"Community, Adult & Adults Early Intervention",Fixtures & Fittings Purchase,,11/09/14,524.31 
5171571,THE FURNISHING SERVICE LTD,Neighbourhoods & Communities,"Community, Adult & Adults Early Intervention",Fixtures & Fittings Purchase,,17/09/14,772.70 
5171615,STM ENVIRONMENTAL LTD,Environmental Services,Places,Repairs & Maintenance Of Tools/Plant,,10/09/14,752.77 
5171636,THE FURNISHING SERVICE LTD,Neighbourhoods & Communities,"Community, Adult & Adults Early Intervention",Fixtures & Fittings Purchase,,10/09/14,550.03 
5171638,THE FURNISHING SERVICE LTD,Neighbourhoods & Communities,"Community, Adult & Adults Early Intervention",Fixtures & Fittings Purchase,,11/09/14,"1,697.55 "
5171640,THE FURNISHING SERVICE LTD,Neighbourhoods & Communities,"Community, Adult & Adults Early Intervention",Fixtures & Fittings Purchase,,11/09/14,"1,031.15 "
5171641,THE FURNISHING SERVICE LTD,Neighbourhoods & Communities,"Community, Adult & Adults Early Intervention",Fixtures & Fittings Purchase,,17/09/14,504.55 
5171642,THE FURNISHING SERVICE LTD,Neighbourhoods & Communities,"Community, Adult & Adults Early Intervention",Fixtures & Fittings Purchase,,11/09/14,938.92 
5171664,TAMESIDE CITIZENS ADVICE BUREAU,Exchequer,Director of Finance,Professional Services,,10/09/14,"3,500.00 "
5171677,THYSSENKRUPP ENCASA LTD,Housing,"Economic Growth, Investment and Sustainability",Improvement Grants - Final Mandatory,,08/09/14,"4,093.00 "
5171678,GENERAL UTILITIES NORTHWEST LTD,Operations,Places,Professional Consultancy Services,,11/09/14,620.00 
5171684,THE MADDOCKS CONSULTANCY,Adult Services,"Community, Adult & Adults Early Intervention",Professional Consultancy Services,,01/09/14,"1,214.40 "
5171687,RUPERT WOOD & SON,Multiple Heads of Service,Multiple Strategic Directorates,Claims Settled,,15/09/14,"1,484.00 "
5171689,CSC(UK) LTD,Technical,Places,Engineers Works,,01/09/14,987.00 
5171696,CREATIVE SUPPORT LTD,Adult Services,"Community, Adult & Adults Early Intervention",Independent Sector Care Fees,,17/09/14,"67,669.36 "
5171706,KELTIC LTD,Technical,Places,Protective Clothing,,08/09/14,"1,546.40 "
5171710,LORETO SIXTH FORM COLLEGE,Education Services,Childrens Services,Professional Services,,01/09/14,"36,526.41 "
5171724,WILLIAMS WOODWARD LTD,Resource Management,Director of Finance,Professional Consultancy Services,,15/09/14,"3,320.00 "
5171731,MUSE DEVELOPMENTS,Engineers Client,"Economic Growth, Investment and Sustainability",Highway Construction,,01/09/14,"57,621.00 "
5171732,MCI DIVENTI LTD,Audit & Risk Management,Director of Finance,Computer Hardware Maintenance Costs,,11/09/14,497.00 
5171732,MCI DIVENTI LTD,Audit & Risk Management,Director of Finance,Professional Consultancy Services,,11/09/14,294.00 
5171733,JULIE MURRAY-SHEPHARD,Public Health,Public Health,Professional Services,Business Payment,15/09/14,"3,000.00 "
5171737,PROLOG PRINT MEDIA LTD,Exchequer,Director of Finance,Printing And Stationery,,11/09/14,"1,248.60 "
5171738,ROYAL MAIL GROUP PLC,Exchequer,Director of Finance,Postages,,01/09/14,"1,592.81 "
5171740,ANVIL MASTERS,Multiple Heads of Service,Multiple Strategic Directorates,Fencing Works,,18/09/14,791.10 
5171774,NEW CHARTER BUILDING CO,Neighbourhoods & Communities,"Community, Adult & Adults Early Intervention",General Materials,,11/09/14,"2,500.00 "
5171808,DOMAIN CARE NORTH WEST LTD,Adult Services,"Community, Adult & Adults Early Intervention",Homecare Fees,,01/09/14,799.50 
5171810,DOMAIN CARE NORTH WEST LTD,Adult Services,"Community, Adult & Adults Early Intervention",Homecare Fees,,01/09/14,639.60 
5171811,DOMAIN CARE NORTH WEST LTD,Adult Services,"Community, Adult & Adults Early Intervention",Homecare Fees,,01/09/14,"1,440.00 "
5171812,DOMAIN CARE NORTH WEST LTD,Adult Services,"Community, Adult & Adults Early Intervention",Homecare Fees,,01/09/14,"3,960.00 "
5171822,RM WATER SERVICES,Environmental Services,Places,Professional Consultancy Services,,10/09/14,745.06 
5171823,,Children's Services,Childrens Services,Childrens Homes Outside Local Authority Fees,Redacted Supplier,05/09/14,"3,623.90 "
5171827,VODAFONE,Resource Management,Director of Finance,Telephone Landline Costs,,01/09/14,785.79 
5171829,ROYAL MAIL GROUP PLC,Exchequer,Director of Finance,Postages,,04/09/14,"2,005.06 "
5171832,AFTER ADOPTION,Children's Services,Childrens Services,Professional Child Services,,15/09/14,"1,250.00 "
5171843,ADVOCACY EXPERIENCE LTD,Adults Early Intervention,"Community, Adult & Adults Early Intervention",Professional Services,,15/09/14,"7,518.62 "
5171844,IDOX SOFTWARE LIMITED,Environmental Services,Places,Computer Hardware Maintenance Costs,,04/09/14,"11,132.21 "
5171874,NWA SOCIAL & MARKET RESEARCH LIMITED,Policy & Scrutiny,Director of Governance,Research Fees,,15/09/14,"3,352.00 "
5171886,ARGOS BUSINESS SOLUTIONS,Children's Services,Childrens Services,Cash Grants,,11/09/14,"1,374.07 "
5171891,HARVEYS,Adult Services,"Community, Adult & Adults Early Intervention",Fixtures & Fittings Purchase,,11/09/14,684.17 
5171892,CREATIVE SUPPORT LTD,Adult Services,"Community, Adult & Adults Early Intervention",Age Concern Fees,,17/09/14,"28,726.66 "
5171894,ST JOHN VIANNEY LOWER SCHOOL,Education Services,Childrens Services,Voluntary Organisations Fees,,10/09/14,"90,720.00 "
5171895,MELLAND HIGH SCHOOL,Education Services,Childrens Services,Other Local Authorities Fees,,08/09/14,"7,283.00 "
5171901,MANCHESTER CITY COUNCIL,Other Services,Director of Finance,Professional Services,,18/09/14,"16,850.00 "
5171948,CATHOLIC BLIND INSTITUTE,Education Services,Childrens Services,Voluntary Organisations Fees,,08/09/14,"8,814.00 "
5171949,CATHOLIC BLIND INSTITUTE,Education Services,Childrens Services,Voluntary Organisations Fees,,08/09/14,"8,814.00 "
5171950,ACORN CARE & EDUCATION LTD (SALES),Education Services,Childrens Services,Voluntary Organisations Fees,,10/09/14,"10,658.00 "
5171956,PENNINE CARE IN PATIENT SERVS PRIORY,Education Services,Childrens Services,Voluntary Organisations Fees,,08/09/14,875.00 
5171957,TURNING POINT SERVICES LTD,Adult Services,"Community, Adult & Adults Early Intervention",Independent Sector Care Fees,,17/09/14,"46,566.67 "
5171959,NETWORK CONNECT LTD,Digital Tameside,Places,It Equipment,,03/09/14,"1,000.00 "
5171961,PENNINE CARE IN PATIENT SERVS PRIORY,Education Services,Childrens Services,Voluntary Organisations Fees,,08/09/14,700.00 
5172025,NEW BRIDGE HORIZONS,Adult Services,"Community, Adult & Adults Early Intervention",Homecare Fees,,01/09/14,"2,101.50 "
5172046,DWP,Multiple Heads of Service,Multiple Strategic Directorates,Claims Settled,,17/09/14,"1,241.49 "
5172049,CW CONSULTING (UK) LTD,Sustainable Growth,Places,Professional Services,,01/09/14,"11,013.50 "
5172061,SCC CONSULTANCY LIMITED,Education Services,Childrens Services,Professional Services,,04/09/14,"3,920.00 "
5172062,SCC CONSULTANCY LIMITED,Education Services,Childrens Services,Professional Services,,04/09/14,"3,430.00 "
5172063,SCC CONSULTANCY LIMITED,Education Services,Childrens Services,Professional Services,,04/09/14,"2,240.00 "
5172064,SCC CONSULTANCY LIMITED,Education Services,Childrens Services,Professional Services,,04/09/14,"3,920.00 "
5172065,SCC CONSULTANCY LIMITED,Education Services,Childrens Services,Professional Services,,04/09/14,"2,240.00 "
5172075,AGE UK TAMESIDE,Adults Early Intervention,"Community, Adult & Adults Early Intervention",Professional Services,,03/09/14,"19,166.67 "
5172082,ZURICH INSURANCE PLC,Multiple Heads of Service,Multiple Strategic Directorates,Prem : Engineering Inspection,,03/09/14,"101,971.31 "
5172083,ZURICH INSURANCE PLC,Multiple Heads of Service,Multiple Strategic Directorates,Prem : Engineering Insurance,,03/09/14,"1,738.65 "
5172085,CYCLESCHEME LTD,Multiple Heads of Service,Multiple Strategic Directorates,Debits,,01/09/14,833.33 
5172088,,Education Services,Childrens Services,Voluntary Organisations Fees,Redacted Supplier,08/09/14,"8,828.33 "
5172089,HAMILTON PROPERTIES,Adult Services,"Community, Adult & Adults Early Intervention",Non-Authority Accommodation Rental,,01/09/14,"1,536.79 "
5172090,,Education Services,Childrens Services,Voluntary Organisations Fees,Redacted Supplier,08/09/14,"9,984.18 "
5172092,WESLEY PROPERTIES (NORTHERN) LTD,Adult Services,"Community, Adult & Adults Early Intervention",Non-Authority Accommodation Rental,,01/09/14,"1,336.48 "
5172096,STAMFORD PROPERTIES,Adult Services,"Community, Adult & Adults Early Intervention",Non-Authority Accommodation Rental,,01/09/14,"2,490.47 "
5172100,CROFT INVESTMENTS LTD,Adult Services,"Community, Adult & Adults Early Intervention",Non-Authority Accommodation Rental,,01/09/14,"1,975.23 "
5172101,,Education Services,Childrens Services,Voluntary Organisations Fees,Redacted Supplier,08/09/14,"1,401.29 "
5172102,HUGH MASON PROPERTIES LIMITED,Adult Services,"Community, Adult & Adults Early Intervention",Non-Authority Accommodation Rental,,01/09/14,"2,153.35 "
5172103,THE FURNISHING SERVICE LTD,Neighbourhoods & Communities,"Community, Adult & Adults Early Intervention",Fixtures & Fittings Purchase,,17/09/14,513.77 
5172104,NORTHERN PROPERTIES LTD,Adult Services,"Community, Adult & Adults Early Intervention",Non-Authority Accommodation Rental,,01/09/14,"1,802.24 "
5172106,,Education Services,Childrens Services,Voluntary Organisations Fees,Redacted Supplier,10/09/14,"10,690.03 "
5172107,,Education Services,Childrens Services,Voluntary Organisations Fees,Redacted Supplier,08/09/14,"8,310.37 "
5172109,HUGH MASON PROPERTIES LIMITED,Adult Services,"Community, Adult & Adults Early Intervention",Non-Authority Accommodation Rental,,01/09/14,"2,411.13 "
5172111,HUGH MASON PROPERTIES LIMITED,Adult Services,"Community, Adult & Adults Early Intervention",Non-Authority Accommodation Rental,,01/09/14,"2,153.35 "
5172112,B A HODCROFT,Environmental Services,Places,Plaques,Business Payment,01/09/14,"1,113.00 "
5172115,APSE,Environmental Services,Places,Telephone Landline Costs,,24/09/14,900.00 
5172119,COMMERCIAL & CLINICAL SOLUTIONS LLP,Adult Services,"Community,Environmental,Adult and Health Services",General Expenditure,,01/09/14,"2,250.00 "
5172122,,Education Services,Childrens Services,Voluntary Organisations Fees,Redacted Supplier,08/09/14,"8,310.37 "
5172125,,Education Services,Childrens Services,Voluntary Organisations Fees,Redacted Supplier,08/09/14,"9,857.55 "
5172129,,Education Services,Childrens Services,Voluntary Organisations Fees,Redacted Supplier,08/09/14,"1,528.68 "
5172139,HMRC,Multiple Heads of Service,Multiple Strategic Directorates,Tax Paid Sub Contractors,,01/09/14,"2,155.87 "
5172145,HUBER CAR PARK SYSTEMS INTERNATIONAL GMBH,Housing,"Economic Growth, Investment and Sustainability",Engineers -External,,03/09/14,"200,936.60 "
5172148,INSPIREDSPACES TAMESIDE LTD,Asset Management and Investment Partnership Management,"Economic Growth, Investment and Sustainability",Refurbish Accommodation Works,,17/09/14,"577,486.59 "
5172148,INSPIREDSPACES TAMESIDE LTD,Asset Mgmt & Investment Partnership Mgmt,Places,Professional Services,,17/09/14,"80,900.00 "
5172148,INSPIREDSPACES TAMESIDE LTD,Tameside Investment Partnership,Places,Agency Staff,,17/09/14,"15,510.94 "
5172148,INSPIREDSPACES TAMESIDE LTD,Tameside Investment Partnership,Places,Miscellaneous Expenses,,17/09/14,"378,861.70 "
5172156,TAMESIDE ARTS LTD,Adult Services,"Community, Adult & Adults Early Intervention",Professional Services,,01/09/14,"1,193.40 "
5172159,THE FURNISHING SERVICE LTD,Neighbourhoods & Communities,"Community, Adult & Adults Early Intervention",Fixtures & Fittings Purchase,,17/09/14,"1,161.25 "
5172166,NORTH WEST CONSTRUCTION,Housing,"Economic Growth, Investment and Sustainability",Improvement Grants - Final Mandatory,,15/09/14,"6,701.00 "
5172176,CORONA ENERGY RETAIL 4 LIMITED,Tameside Investment Partnership,Places,Gas,,17/09/14,"1,379.83 "
5172186,POSITIVE STEPS OLDHAM,Strategy & Early Intervention,Childrens Services,Professional Services,,18/09/14,"38,219.18 "
5172193,ACORN CARE & EDUCATION LTD (SALES),Education Services,Childrens Services,Voluntary Organisations Fees,,10/09/14,"10,658.00 "
5172196,JPCS LIMITED,Engineers Client,"Economic Growth, Investment and Sustainability",Highway Construction,,25/09/14,"9,561.50 "
5172197,PENNINE CARE IN PATIENT SERVS PRIORY,Education Services,Childrens Services,Voluntary Organisations Fees,,08/09/14,"2,100.00 "
5172206,HOMESTART TAMESIDE & OLDHAM,Public Health,Public Health,Professional Services,,18/09/14,"16,666.67 "
5172207,ACME AIR CONDITIONING,Asset Mgmt & Investment Partnership Mgmt,Places,Purchase Heavy Catering Equipment,,15/09/14,712.00 
5172208,THYSSENKRUPP ENCASA LTD,Housing,"Economic Growth, Investment and Sustainability",Improvement Grants - Final Mandatory,,17/09/14,"1,925.00 "
5172218,AFTER ADOPTION,Children's Services,Childrens Services,"Activity (Materials, Trips)",,15/09/14,"15,000.00 "
5172219,,Children's Services,Childrens Services,Foster Carer Agency Fees,Redacted Supplier,11/09/14,"3,808.66 "
5172228,PRIME LIFE LTD,Adult Services,"Community, Adult & Adults Early Intervention",Residential Home Short Stay Fees,,15/09/14,"3,238.35 "
5172240,CORONA ENERGY RETAIL 4 LIMITED,Tameside Investment Partnership,Places,Gas,,17/09/14,891.13 
5172243,M G DOMESTIC,Adult Services,"Community, Adult & Adults Early Intervention",Fixtures & Fittings Purchase,,01/09/14,514.99 
5172260,NPOWER LIMITED,Tameside Investment Partnership,Places,Electricity,,17/09/14,"1,167.68 "
5172262,NPOWER LIMITED,Tameside Investment Partnership,Places,Electricity,,17/09/14,"1,099.23 "
5172267,CYCLESCHEME LTD,Multiple Heads of Service,Multiple Strategic Directorates,Debits,,01/09/14,832.50 
5172268,NHS TAMESIDE AND GLOSSOP CCG,Children's Services,Childrens Services,Adoption Fees - Placed for Adoption,,29/09/14,"1,584.91 "
5172274,SCC CONSULTANCY LIMITED,Education Services,Childrens Services,Professional Services,,04/09/14,"1,960.00 "
5172280,TAMESIDE SPORTS TRUST,Adult Services,"Community, Adult & Adults Early Intervention",Professional Services,,01/09/14,"3,480.00 "
5172289,CORONA ENERGY RETAIL 4 LIMITED,Tameside Investment Partnership,Places,Gas,,17/09/14,557.48 
5172309,POSTAGE BY PHONE PITNEY BOWES LTD,Exchequer,Director of Finance,Postages,,01/09/14,"40,000.00 "
5172310,HALLSWORTH & CO LTD,Neighbourhoods & Communities,"Community, Adult & Adults Early Intervention",Emergency Grant Payments,,01/09/14,900.00 
5172324,NPOWER LIMITED,Tameside Investment Partnership,Places,Electricity,,17/09/14,"1,619.18 "
5172325,UNITED UTILITIES WATER PLC,Technical,Places,Water Rates,,01/09/14,804.46 
5172337,NPOWER LIMITED,Technical,Places,Electricity,,01/09/14,"1,048.66 "
5172342,NPOWER LIMITED,Tameside Investment Partnership,Places,Electricity,,17/09/14,"1,258.32 "
5172350,NPOWER LIMITED,Tameside Investment Partnership,Places,Electricity,,17/09/14,"1,111.32 "
5172351,NPOWER LIMITED,Tameside Investment Partnership,Places,Electricity,,17/09/14,"2,139.15 "
5172352,,Adult Services,"Community, Adult & Adults Early Intervention",Residential Home Short Stay Fees,Redacted Supplier,01/09/14,588.84 
5172356,NPOWER LIMITED,Tameside Investment Partnership,Places,Electricity,,17/09/14,"1,099.09 "
5172358,NPOWER LIMITED,Tameside Investment Partnership,Places,Electricity,,17/09/14,736.79 
5172361,RICOH UK,Education Services,Childrens Services,Printing And Stationery,,01/09/14,766.96 
5172365,NPOWER LIMITED,Tameside Investment Partnership,Places,Electricity,,17/09/14,"1,488.39 "
5172366,NPOWER LIMITED,Tameside Investment Partnership,Places,Electricity,,17/09/14,"1,504.95 "
5172367,NPOWER LIMITED,Tameside Investment Partnership,Places,Electricity,,17/09/14,"1,177.27 "
5172368,NPOWER LIMITED,Tameside Investment Partnership,Places,Electricity,,17/09/14,"1,272.23 "
5172370,NPOWER LIMITED,Tameside Investment Partnership,Places,Electricity,,17/09/14,"1,037.39 "
5172378,NPOWER LIMITED,Technical,Places,Electricity,,01/09/14,851.07 
5172379,NPOWER LIMITED,Technical,Places,Electricity,,01/09/14,"1,020.10 "
5172380,NPOWER LIMITED,Technical,Places,Electricity,,01/09/14,851.07 
5172381,NPOWER LIMITED,Technical,Places,Electricity,,01/09/14,850.99 
5172383,NPOWER LIMITED,Technical,Places,Electricity,,01/09/14,"1,054.26 "
5172384,NPOWER LIMITED,Technical,Places,Electricity,,01/09/14,"1,072.93 "
5172386,NPOWER LIMITED,Technical,Places,Electricity,,01/09/14,"1,020.10 "
5172389,CORONA ENERGY RETAIL 4 LIMITED,Tameside Investment Partnership,Places,Gas,,17/09/14,725.09 
5172394,THE FURNISHING SERVICE LTD,Neighbourhoods & Communities,"Community, Adult & Adults Early Intervention",Fixtures & Fittings Purchase,,01/09/14,585.93 
5172398,THE FURNISHING SERVICE LTD,Neighbourhoods & Communities,"Community, Adult & Adults Early Intervention",Fixtures & Fittings Purchase,,01/09/14,509.76 
5172400,THE FURNISHING SERVICE LTD,Neighbourhoods & Communities,"Community, Adult & Adults Early Intervention",Fixtures & Fittings Purchase,,01/09/14,949.99 
5172402,THE FURNISHING SERVICE LTD,Neighbourhoods & Communities,"Community, Adult & Adults Early Intervention",Fixtures & Fittings Purchase,,01/09/14,549.83 
5172404,THE FURNISHING SERVICE LTD,Neighbourhoods & Communities,"Community, Adult & Adults Early Intervention",Fixtures & Fittings Purchase,,01/09/14,839.24 
5172406,THE FURNISHING SERVICE LTD,Neighbourhoods & Communities,"Community, Adult & Adults Early Intervention",Fixtures & Fittings Purchase,,11/09/14,"1,148.58 "
5172408,SHEILA CURRAN,Children's Services,Childrens Services,Inspection Fees,Business Payment,01/09/14,"1,991.04 "
5172432,,Adult Services,"Community, Adult & Adults Early Intervention",Day Care Fees,Redacted Supplier,01/09/14,678.16 
5172439,,Children's Services,Childrens Services,Childrens Homes Outside Local Authority Fees,Redacted Supplier,03/09/14,"13,728.66 "
5172445,,Children's Services,Childrens Services,Childrens Homes Outside Local Authority Fees,Redacted Supplier,03/09/14,"11,067.00 "
5172447,PENNINE CARE IN PATIENT SERVS PRIORY,Education Services,Childrens Services,Voluntary Organisations Fees,,08/09/14,"1,750.00 "
5172448,,Children's Services,Childrens Services,Foster Carer Agency Fees,Redacted Supplier,11/09/14,800.00 
5172452,REGENDA LIMITED,Adult Services,"Community, Adult & Adults Early Intervention",Non-Authority Accommodation Rental,,15/09/14,"18,953.36 "
5172454,K P DODD CONSTRUCTION LTD,Housing,"Economic Growth, Investment and Sustainability",Improvement Grants - Final Mandatory,,01/09/14,"4,212.00 "
5172455,PENNINE CARE IN PATIENT SERVS PRIORY,Education Services,Childrens Services,Voluntary Organisations Fees,,08/09/14,"2,625.00 "
5172458,ACORN CARE & EDUCATION LTD (SALES),Education Services,Childrens Services,Voluntary Organisations Fees,,10/09/14,"10,658.00 "
5172459,ABLE CARE AND SUPPORT SERVICES LTD,Adult Services,"Community, Adult & Adults Early Intervention",Homecare Fees,,01/09/14,"2,045.15 "
5172462,CARE UK HOMECARE,Adult Services,"Community, Adult & Adults Early Intervention",Homecare Fees,,01/09/14,"30,307.73 "
5172463,MRL HEALTHCARE LIMITED,Adult Services,"Community, Adult & Adults Early Intervention",Homecare Fees,,15/09/14,"13,255.77 "
5172464,CATHOLIC BLIND INSTITUTE,Children's Services,Childrens Services,Homecare Fees,,01/09/14,"1,232.00 "
5172465,CATHOLIC BLIND INSTITUTE,Children's Services,Childrens Services,Homecare Fees,,01/09/14,"2,464.00 "
5172470,OFSTED,Children's Services,Childrens Services,Inspection Fees,,03/09/14,"2,078.00 "
5172471,STOCKPORT NHS FOUNDATION TRUST,Children's Services,Childrens Services,Homecare Fees,,01/09/14,"4,254.75 "
5172474,COURTYARD CONTINUING CARE LTD T/A COURTYARD CARE PLUS,Children's Services,Childrens Services,Homecare Fees,,01/09/14,"5,907.00 "
5172475,CARE IN MIND LTD,Children's Services,Childrens Services,Homecare Fees,,01/09/14,"13,064.33 "
5172476,NORTH WEST CONSTRUCTION,Housing,"Economic Growth, Investment and Sustainability",Improvement Grants - Final Mandatory,,01/09/14,"1,550.00 "
5172477,NORTH WEST CONSTRUCTION,Housing,"Economic Growth, Investment and Sustainability",Improvement Grants - Final Mandatory,,15/09/14,"3,922.00 "
5172478,MR JAMES TURLEY T/A R TURLEY PLUMBERS,Housing,"Economic Growth, Investment and Sustainability",Improvement Grants - Final Mandatory,Business Payment,01/09/14,"3,480.00 "
5172484,INSPIREDSPACES TAMESIDE LTD,Asset Management and Investment Partnership Management,"Economic Growth, Investment and Sustainability",Telecom,,17/09/14,"7,304.60 "
5172484,INSPIREDSPACES TAMESIDE LTD,Tameside Investment Partnership,Places,Agency Staff,,17/09/14,"23,427.00 "
5172484,INSPIREDSPACES TAMESIDE LTD,Tameside Investment Partnership,Places,Building Repairs,,17/09/14,"5,812.78 "
5172484,INSPIREDSPACES TAMESIDE LTD,Tameside Investment Partnership,Places,Hire Of Rooms,,17/09/14,"-16,414.45 "
5172484,INSPIREDSPACES TAMESIDE LTD,Tameside Investment Partnership,Places,Miscellaneous Expenses,,17/09/14,"55,607.97 "
5172493,DEPARTMENT OF HEALTH ,Adult Services,"Community, Adult & Adults Early Intervention",Health Income,,17/09/14,"66,685.60 "
5172498,PICKMERE NURSERIES LTD,Operations,Places,General Materials,,18/09/14,511.49 
5172502,VODAFONE,Multiple Heads of Service,Multiple Strategic Directorates,Debits,,18/09/14,"6,810.68 "
5172510,,Children's Services,Childrens Services,Childrens Homes Outside Local Authority Fees,Redacted Supplier,01/09/14,"20,250.00 "
5172514,NORTH WEST COMMUNITY  SERVICES (GTR M/CR) LTD,Adult Services,"Community, Adult & Adults Early Intervention",Homecare Fees,,25/09/14,"11,048.80 "
5172515,SCHNEIDER ELECTRIC EMS UK LIMITED,Technical,Places,Building Maintenance,,18/09/14,771.50 
5172525,TORDAN HEALTHCARE LTD,Children's Services,Childrens Services,Homecare Fees,,01/09/14,681.50 
5172529,,Children's Services,Childrens Services,Childrens Homes Outside Local Authority Fees,Redacted Supplier,05/09/14,"19,928.66 "
5172533,HOIST & SHOWER CHAIR CO,Housing,"Economic Growth, Investment and Sustainability",Improvement Grants - Final Mandatory,,17/09/14,"1,965.00 "
5172534,,Children's Services,Childrens Services,Childrens Homes Outside Local Authority Fees,Redacted Supplier,04/09/14,"16,961.34 "
5172536,,Children's Services,Childrens Services,Childrens Homes Outside Local Authority Fees,Redacted Supplier,03/09/14,"16,414.20 "
5172537,CARITAS CARE LTD,Children's Services,Childrens Services,Childrens Homes Outside Local Authority Fees,,10/09/14,"9,000.00 "
5172538,,Children's Services,Childrens Services,Foster Carer Agency Fees,Redacted Supplier,03/09/14,799.00 
5172542,,Children's Services,Childrens Services,Foster Carer Agency Fees,Redacted Supplier,10/09/14,"3,301.15 "
5172547,CREATIVE SUPPORT LTD,Adult Services,"Community, Adult & Adults Early Intervention",Homecare Fees,,01/09/14,"3,115.46 "
5172550,,Adult Services,"Community, Adult & Adults Early Intervention",Contribution to Maintenance Fee Income,Redacted Supplier,03/09/14,709.30 
5172557,DR ANEELA PILKINGTON,Children's Services,Childrens Services,Professional Medical Services,Business Payment,01/09/14,507.00 
5172559,DOVE PROPERTIES,Children's Services,Childrens Services,Living Without Formal Support,,01/09/14,923.00 
5172560,,Children's Services,Childrens Services,Living Without Formal Support,Redacted Supplier,05/09/14,850.00 
5172561,,Children's Services,Childrens Services,Cash Grants,Redacted Supplier,01/09/14,500.00 
5172569,,Children's Services,Childrens Services,Foster Carer Agency Fees,Redacted Supplier,01/09/14,"2,825.00 "
5172570,STEP AHEAD RESOURCE SERVICES,Children's Services,Childrens Services,Living With Formal Support,,01/09/14,750.00 
5172573,CITY LIFT SERVICES (NW) LTD,Adult Services,"Community, Adult & Adults Early Intervention",General Equipment Repair & Maintenance,,18/09/14,"14,595.00 "
5172582,HYDE TROPHIES,"Media, Marketing & Communications",Director of Governance,"Marketing, Publicity and Recruitment",,03/09/14,819.00 
5172584,ELECTRICITY NORTH WEST LTD,Technical,Places,Highway Construction,,18/09/14,609.99 
5172585,ELECTRICITY NORTH WEST LTD,Technical,Places,Reactive Works Engineers Recharge,,03/09/14,609.99 
5172586,ELECTRICITY NORTH WEST LTD,Technical,Places,Street Lighting,,18/09/14,689.97 
5172587,BRIAN GLYNN & CO,Housing,"Economic Growth, Investment and Sustainability",Improvement Grants - Final Mandatory,,15/09/14,"3,480.00 "
5172590,MIDLAND SOFTWARE LTD,People & Performance,Director of Governance,Professional Services,,24/09/14,882.55 
5172595,HOUSING AND CARE 21,Adult Services,"Community, Adult & Adults Early Intervention",Homecare Fees,,15/09/14,"13,909.39 "
5172600,BLACKPOOL PLEASURE BEACH,Strategy & Early Intervention,Childrens Services,"Activity (Materials, Trips)",,18/09/14,881.25 
5172602,THE BLACKBURN PRODUCTS CO LTD,Technical,Places,Waste Disposal Fees,,01/09/14,560.00 
5172607,CARRICK SIGNS LTD,"Media, Marketing & Communications",Director of Governance,Printing And Stationery,,18/09/14,535.00 
5172609,ADDICTION DEPENDENCY SOLUTIONS (ADS),Public Health,Public Health,Professional Services,,25/09/14,"5,019.19 "
5172616,MERIDIAN HEALTHCARE LTD,Adult Services,"Community, Adult & Adults Early Intervention",Day Centre Fees,,05/09/14,"26,904.00 "
5172624,PATROL,Technical,Places,Court Fees,,03/09/14,"1,179.66 "
5172624,PATROL,Technical,Places,General Materials,,03/09/14,"1,095.14 "
5172625,KPR MIDLINK LTD,Technical,Places,Computer Hardware Maintenance Costs,,29/09/14,"1,910.89 "
5172626,KPR MIDLINK LTD,Technical,Places,Computer Hardware Maintenance Costs,,29/09/14,"1,892.88 "
5172627,FUSION CARE,Children's Services,Childrens Services,Living With Formal Support,,03/09/14,"11,049.28 "
5172629,FUSION CARE,Children's Services,Childrens Services,Living With Formal Support,,01/09/14,"1,992.85 "
5172632,,Children's Services,Childrens Services,Childrens Homes Outside Local Authority Fees,Redacted Supplier,11/09/14,"12,825.00 "
5172634,THE FURNISHING SERVICE LTD,Neighbourhoods & Communities,"Community, Adult & Adults Early Intervention",Fixtures & Fittings Purchase,,25/09/14,"1,000.66 "
5172636,BURY MBC,Other Services,Director of Finance,Contingency Provisions,,05/09/14,"14,250.00 "
5172638,E JORDON REFRIGERATION LIMITED,Asset Mgmt & Investment Partnership Mgmt,Places,Purchase Heavy Catering Equipment,,08/09/14,"1,315.00 "
5172640,IDOX SOFTWARE LIMITED,Sustainable Growth,Places,Computer Hardware Maintenance Costs,,04/09/14,"1,500.00 "
5172646,THYSSENKRUPP ENCASA LTD,Housing,"Economic Growth, Investment and Sustainability",Improvement Grants - Final Mandatory,,01/09/14,"3,400.00 "
5172648,NEW CHARTER HOUSING TRUST GROUP,Neighbourhoods & Communities,"Community, Adult & Adults Early Intervention",Authority Accommodation Rental,,01/09/14,"11,421.39 "
5172650,CITY LIFT SERVICES (NW) LTD,Housing,"Economic Growth, Investment and Sustainability",Adaptations - Jobs <#500,,18/09/14,500.00 
5172653,CBRE SPUK II (NO17) LTD,Tameside Investment Partnership,Places,Non-Authority Accommodation Rental,,17/09/14,"4,750.00 "
5172656,JACK DOYLE,Neighbourhoods & Communities,"Community, Adult & Adults Early Intervention",Professional Entertainment Services,Business Payment,25/09/14,160.00 
5172656,JACK DOYLE,Neighbourhoods & Communities,"Community, Adult & Adults Early Intervention",Professional Services,Business Payment,25/09/14,680.00 
5172657,HYDE TROPHIES,"Media, Marketing & Communications",Director of Governance,"Marketing, Publicity and Recruitment",,04/09/14,762.00 
5172664,STAMFORD PROPERTIES,Adult Services,"Community, Adult & Adults Early Intervention",Non-Authority Accommodation Rental,,10/09/14,992.62 
5172665,SOUTHFIELDS CARE HOMES LIMITED,Adult Services,"Community, Adult & Adults Early Intervention",Residential Home Short Stay Fees,,03/09/14,"2,435.71 "
5172668,SOUTHFIELDS CARE HOMES LIMITED,Adult Services,"Community, Adult & Adults Early Intervention",Residential Home Short Stay Fees,,03/09/14,"1,100.00 "
5172671,TAMESIDE SPORTS TRUST,Neighbourhoods & Communities,"Community, Adult & Adults Early Intervention",Other Accomodation Related Costs,,03/09/14,"20,000.00 "
5172672,INSPIREDSPACES TAMESIDE LTD,Asset Mgmt & Investment Partnership Mgmt,Places,Free School Meal Costs,,17/09/14,"2,240.00 "
5172672,INSPIREDSPACES TAMESIDE LTD,Asset Mgmt & Investment Partnership Mgmt,Places,Non-Authority Accommodation Rental,,17/09/14,"56,950.11 "
5172672,INSPIREDSPACES TAMESIDE LTD,Asset Mgmt & Investment Partnership Mgmt,Places,Refreshments,,17/09/14,"1,452.30 "
5172672,INSPIREDSPACES TAMESIDE LTD,Asset Mgmt & Investment Partnership Mgmt,Places,Utilities,,17/09/14,"9,234.75 "
5172673,GMP FUND ACCOUNT,Neighbourhoods & Communities,"Community, Adult & Adults Early Intervention",Fixtures & Fittings Purchase,,29/09/14,"3,081.65 "
5172674,NCC SERVICES LIMITED,Neighbourhoods & Communities,"Community, Adult & Adults Early Intervention",Computer Software,,04/09/14,795.00 
5172675,INSPIREDSPACES TAMESIDE (PROJECTCO2) LTD,Asset Mgmt & Investment Partnership Mgmt,Places,Free School Meal Costs,,17/09/14,"12,418.00 "
5172675,INSPIREDSPACES TAMESIDE (PROJECTCO2) LTD,Asset Mgmt & Investment Partnership Mgmt,Places,Refreshments,,17/09/14,"1,689.18 "
5172675,INSPIREDSPACES TAMESIDE (PROJECTCO2) LTD,Asset Mgmt & Investment Partnership Mgmt,Places,Unitary Charge Payments,,17/09/14,"812,147.63 "
5172675,INSPIREDSPACES TAMESIDE (PROJECTCO2) LTD,Asset Mgmt & Investment Partnership Mgmt,Places,Utilities,,17/09/14,"50,338.87 "
5172677,INSPIREDSPACES TAMESIDE(PROJECTCO1) LTD,Asset Mgmt & Investment Partnership Mgmt,Places,Free School Meal Costs,,17/09/14,"5,886.00 "
5172677,INSPIREDSPACES TAMESIDE(PROJECTCO1) LTD,Asset Mgmt & Investment Partnership Mgmt,Places,Unitary Charge Payments,,17/09/14,"446,753.16 "
5172677,INSPIREDSPACES TAMESIDE(PROJECTCO1) LTD,Asset Mgmt & Investment Partnership Mgmt,Places,Utilities,,17/09/14,"30,618.05 "
5172680,PERSON CENTRED CARE SERVICES LIMITED,Adult Services,"Community, Adult & Adults Early Intervention",Homecare Fees,,01/09/14,"1,767.10 "
5172681,PYRAMID SCHOOLS (TAMESIDE) LTD,Asset Mgmt & Investment Partnership Mgmt,Places,Free School Meal Costs,,17/09/14,"8,996.00 "
5172681,PYRAMID SCHOOLS (TAMESIDE) LTD,Asset Mgmt & Investment Partnership Mgmt,Places,Unitary Charge Payments,,17/09/14,"417,145.23 "
5172683,SOUTHFIELDS CARE HOMES LIMITED,Adult Services,"Community, Adult & Adults Early Intervention",Residential Home Short Stay Fees,,03/09/14,"2,435.71 "
5172686,UNITED UTILITIES WATER PLC,Tameside Investment Partnership,Places,Metered Water Costs,,17/09/14,"1,073.10 "
5172694,UNITED UTILITIES WATER PLC,Tameside Investment Partnership,Places,Metered Water Costs,,17/09/14,"1,606.29 "
5172698,UNITED UTILITIES WATER PLC,Tameside Investment Partnership,Places,Metered Water Costs,,17/09/14,"2,542.44 "
5172699,UNITED UTILITIES WATER PLC,Tameside Investment Partnership,Places,Metered Water Costs,,17/09/14,"1,096.06 "
5172701,UNITED UTILITIES WATER PLC,Tameside Investment Partnership,Places,Metered Water Costs,,17/09/14,"1,304.74 "
5172701,UNITED UTILITIES WATER PLC,Technical,Places,Metered Water Costs,,17/09/14,124.07 
5172706,LES HALMAN NURSERIES LIMITED,Operations,Places,General Materials,,01/09/14,"7,544.54 "
5172708,UNITED UTILITIES WATER PLC,Tameside Investment Partnership,Places,Metered Water Costs,,17/09/14,"3,426.06 "
5172710,ROYAL MAIL GROUP PLC,Exchequer,Director of Finance,Postages,,11/09/14,"1,072.74 "
5172714,UNITED UTILITIES WATER PLC,Tameside Investment Partnership,Places,Metered Water Costs,,17/09/14,736.68 
5172737,RIGBY TAYLOR LTD,Operations,Places,General Materials,,18/09/14,526.32 
5172743,TAMESIDE HOSPITAL NHS FOUNDATION TRUST,Public Health,Public Health,Professional Services,,03/09/14,"2,125.00 "
5172759,TAMESIDE HOSPITAL NHS FOUNDATION TRUST,Public Health,Public Health,Professional Services,,03/09/14,"3,112.34 "
5172782,AON LIMITED,Adult Services,"Community, Adult & Adults Early Intervention",Miscellaneous Insurance,,15/09/14,484.71 
5172782,AON LIMITED,Children's Services,Childrens Services,Miscellaneous Insurance,,15/09/14,484.71 
5172792,,Children's Services,Childrens Services,Childrens Homes Outside Local Authority Fees,Redacted Supplier,24/09/14,"2,952.82 "
5172805,,Children's Services,Childrens Services,Foster Carer Agency Fees,Redacted Supplier,10/09/14,"3,273.02 "
5172808,MARY FODEN,Adult Services,"Community, Adult & Adults Early Intervention",Professional Services,Business Payment,03/09/14,655.40 
5172811,UNITED UTILITIES WATER PLC,Tameside Investment Partnership,Places,Metered Water Costs,,17/09/14,"4,191.65 "
5172816,WHITEFERN LTD,Neighbourhoods & Communities,"Community, Adult & Adults Early Intervention",Fixtures & Fittings Purchase,,10/09/14,"1,913.56 "
5172819,WHITEFERN LTD,Neighbourhoods & Communities,"Community, Adult & Adults Early Intervention",Fixtures & Fittings Purchase,,10/09/14,"1,913.56 "
5172821,ACTIV TRAINING LIMITED,Sustainable Growth,Places,Audio/Visual Equipment/Aids,,18/09/14,600.00 
5172822,WHITEFERN LTD,Neighbourhoods & Communities,"Community, Adult & Adults Early Intervention",Fixtures & Fittings Purchase,,10/09/14,"1,537.06 "
5172823,NGS SECURE LTD,Digital Tameside,Places,Professional Services,,25/09/14,"9,099.96 "
5172827,UPDATA INFRASTRUCTURE UK LTD,Multiple Heads of Service,Multiple Strategic Directorates,Telephone Landline Costs,,29/09/14,"8,112.50 "
5172840,TRANSPORT FOR GREATER MANCHESTER,Education Services,Childrens Services,Transport Of Pupils,,18/09/14,"83,460.00 "
5172842,CITY LIFT SERVICES (NW) LTD,Adult Services,"Community, Adult & Adults Early Intervention",General Equipment Repair & Maintenance,,18/09/14,"5,958.00 "
5172843,STOCKPORT MBC,Sustainable Growth,Places,Professional Services,,25/09/14,"1,000.00 "
5172846,MAUREEN NOBLE,Children's Services,Childrens Services,Professional Services,Business Payment,04/09/14,"1,650.00 "
5172851,,Adult Services,"Community, Adult & Adults Early Intervention",Homecare Fees,Redacted Supplier,03/09/14,"1,802.14 "
5172854,,Adult Services,"Community, Adult & Adults Early Intervention",Homecare Fees,Redacted Supplier,04/09/14,544.73 
5172857,,Children's Services,Childrens Services,Foster Carer Agency Fees,Redacted Supplier,05/09/14,"3,747.00 "
5172858,POSTAGE BY PHONE PITNEY BOWES LTD,Exchequer,Director of Finance,Postages,,04/09/14,"5,009.00 "
5172863,,Children's Services,Childrens Services,Foster Carer Agency Fees,Redacted Supplier,05/09/14,"3,871.90 "
5172874,M NELSON & SON,Technical,Places,Engineers Works,,25/09/14,"12,350.00 "
5172875,PHS GROUP PLC,Environmental Services,Places,Sub-contractor Services,,15/09/14,"2,110.37 "
5172879,,Children's Services,Childrens Services,Foster Carer Agency Fees,Redacted Supplier,03/09/14,"4,050.00 "
5172881,MANCHESTER MENTAL HEALTH & SOCIAL CARE TRUST,Other Services,Director of Finance,Professional Services,,05/09/14,"4,322.29 "
5172883,MISS JANE CROSS QC,Children's Services,Childrens Services,Legal Fees,Business Payment,03/09/14,"1,975.00 "
5172884,CREATIVE IDEAS IN PRINT LTD,"Media, Marketing & Communications",Director of Governance,Printing And Stationery,,08/09/14,"1,111.98 "
5172896,TORDAN HEALTHCARE LTD,Children's Services,Childrens Services,Professional Services,,04/09/14,583.63 
5172897,TORDAN HEALTHCARE LTD,Children's Services,Childrens Services,Professional Services,,04/09/14,"1,181.75 "
5172898,TORDAN HEALTHCARE LTD,Children's Services,Childrens Services,Professional Services,,04/09/14,"1,392.00 "
5172899,TORDAN HEALTHCARE LTD,Children's Services,Childrens Services,Professional Services,,04/09/14,"1,268.75 "
5172900,UPDATA INFRASTRUCTURE UK LTD,Multiple Heads of Service,Multiple Strategic Directorates,Telephone Landline Costs,,25/09/14,"18,882.50 "
5172903,GREENSCAPE,Operations,Places,Agency Staff,,10/09/14,661.14 
5172904,CARE UK HOMECARE,Adult Services,"Community, Adult & Adults Early Intervention",Homecare Fees,,11/09/14,"5,309.16 "
5172905,CARE UK HOMECARE,Adult Services,"Community, Adult & Adults Early Intervention",Homecare Fees,,11/09/14,"113,208.33 "
5172906,WILLIAMS WOODWARD LTD,Resource Management,Director of Finance,Professional Consultancy Services,,25/09/14,"2,490.00 "
5172907,GREENSCAPE,Operations,Places,Agency Staff,,10/09/14,816.02 
5172908,ADDICTION DEPENDENCY SOLUTIONS (ADS),Public Health,Public Health,Professional Services,,18/09/14,"32,200.00 "
5172909,ANNA PIERCE-HAYES,Education Services,Childrens Services,Professional Services,Business Payment,03/09/14,"1,000.00 "
5172910,EMMA MARSTON,Sustainable Growth,Places,Professional Consultancy Services,Business Payment,25/09/14,"2,300.00 "
5172913,INSPIREDSPACES TAMESIDE LTD,Asset Mgmt & Investment Partnership Mgmt,Places,Professional Services,,17/09/14,"80,900.00 "
5172913,INSPIREDSPACES TAMESIDE LTD,Asset Mgmt & Investment Partnership Mgmt,Places,Refreshments,,17/09/14,"42,645.39 "
5172913,INSPIREDSPACES TAMESIDE LTD,Tameside Investment Partnership,Places,Professional Architectural & Surveying Services,,17/09/14,500.00 
5172913,INSPIREDSPACES TAMESIDE LTD,(blank),(blank),Asbestos Removal,,17/09/14,"25,974.12 "
5172913,INSPIREDSPACES TAMESIDE LTD,(blank),(blank),Professional Architectural & Surveying Services,,17/09/14,750.00 
5172914,INSPIREDSPACES TAMESIDE LTD,Asset Management and Investment Partnership Management,"Economic Growth, Investment and Sustainability",Refurbishment Construction Costs,,17/09/14,"922,283.00 "
5172924,CREATIVE SUPPORT LTD,Adult Services,"Community, Adult & Adults Early Intervention",Homecare Fees,,03/09/14,"15,291.50 "
5172925,CREATIVE SUPPORT LTD,Adult Services,"Community, Adult & Adults Early Intervention",Homecare Fees,,03/09/14,"15,291.50 "
5172926,CREATIVE SUPPORT LTD,Adult Services,"Community, Adult & Adults Early Intervention",Homecare Fees,,03/09/14,"15,883.00 "
5172927,CREATIVE SUPPORT LTD,Adult Services,"Community, Adult & Adults Early Intervention",Homecare Fees,,03/09/14,"15,291.50 "
5172930,BURY MBC,Adult Services,"Community,Environmental,Adult and Health Services",General Expenditure,,05/09/14,"1,152.68 "
5172933,DWP,Multiple Heads of Service,Multiple Strategic Directorates,Claims Settled,,03/09/14,600.00 
5172938,UNITED UTILITIES WATER PLC,Tameside Investment Partnership,Places,Metered Water Costs,,17/09/14,"1,541.03 "
5172939,UNITED UTILITIES WATER PLC,Tameside Investment Partnership,Places,Metered Water Costs,,17/09/14,736.68 
5172958,THE GUINNESS PARTNERSHIP LTD,Adult Services,"Community, Adult & Adults Early Intervention",Non-Authority Accommodation Rental,,03/09/14,"1,172.45 "
5172975,,Children's Services,Childrens Services,Foster Carer Agency Fees,Redacted Supplier,15/09/14,"4,248.89 "
5172976,,Children's Services,Childrens Services,Foster Carer Agency Fees,Redacted Supplier,15/09/14,"5,799.30 "
5172977,,Children's Services,Childrens Services,Foster Carer Agency Fees,Redacted Supplier,15/09/14,"3,117.98 "
5172978,,Children's Services,Childrens Services,Foster Carer Agency Fees,Redacted Supplier,15/09/14,"4,380.30 "
5172982,,Children's Services,Childrens Services,Foster Carer Agency Fees,Redacted Supplier,15/09/14,"4,380.30 "
5172986,HANDICARE LIMITED,Housing,"Economic Growth, Investment and Sustainability",Improvement Grants - Final Mandatory,,18/09/14,"4,551.00 "
5172988,HANDICARE LIMITED,Housing,"Economic Growth, Investment and Sustainability",Improvement Grants - Final Mandatory,,25/09/14,"4,134.00 "
5172990,HANDICARE LIMITED,Housing,"Economic Growth, Investment and Sustainability",Improvement Grants - Final Mandatory,,18/09/14,"4,475.00 "
5172995,VINCENT OBRIEN (CONSTRUCTION),Housing,"Economic Growth, Investment and Sustainability",Improvement Grants - Final Mandatory,,15/09/14,918.75 
5172996,THE GUINNESS PARTNERSHIP LTD,Adult Services,"Community, Adult & Adults Early Intervention",Non-Authority Accommodation Rental,,03/09/14,"3,903.20 "
5172997,TOBACCO FREE FUTURES,Public Health,Public Health,Professional Services,,03/09/14,"4,961.00 "
5172999,PROGRESS CARE HOUSING ASSOCIATION LIMITED,Adult Services,"Community, Adult & Adults Early Intervention",Non-Authority Accommodation Rental,,15/09/14,"5,316.08 "
5173004,TORDAN HEALTHCARE LTD,Children's Services,Childrens Services,Professional Services,,04/09/14,949.75 
5173008,TORDAN HEALTHCARE LTD,Children's Services,Childrens Services,Professional Services,,04/09/14,931.63 
5173011,TORDAN HEALTHCARE LTD,Children's Services,Childrens Services,Professional Services,,04/09/14,"1,065.75 "
5173012,TORDAN HEALTHCARE LTD,Children's Services,Childrens Services,Professional Services,,04/09/14,884.50 
5173020,K P DODD CONSTRUCTION LTD,Housing,"Economic Growth, Investment and Sustainability",Improvement Grants - Final Mandatory,,15/09/14,"4,270.00 "
5173022,NACRO,Education Services,Childrens Services,Professional Services,,04/09/14,"1,200.00 "
5173025,STOCKPORT NHS FOUNDATION TRUST,Strategy & Early Intervention,Childrens Services,Professional Services,,10/09/14,"2,435.50 "
5173030,RIGBY TAYLOR LTD,Operations,Places,General Materials,,25/09/14,"2,744.00 "
5173033,STEP AHEAD RESOURCE SERVICES,SCYP ,Childrens Services,Living With Formal Support,,04/09/14,750.00 
5173034,STEP AHEAD RESOURCE SERVICES,SCYP ,Childrens Services,Living With Formal Support,,04/09/14,750.00 
5173035,,Children's Services,Childrens Services,Foster Carer Agency Fees,Redacted Supplier,25/09/14,"7,971.43 "
5173046,BIRTENSHAW SCHOOL,Education Services,Childrens Services,Voluntary Organisations Fees,,03/09/14,"5,747.14 "
5173057,STEP AHEAD RESOURCE SERVICES,SCYP ,Childrens Services,Living With Formal Support,,03/09/14,750.00 
5173060,HITESH PAREKH,Neighbourhoods & Communities,"Community, Adult & Adults Early Intervention",Other Accomodation Related Costs,Business Payment,03/09/14,500.00 
5173066,TRAFFORD MBC,Other Services,Director of Finance,Other Accomodation Related Costs,,05/09/14,834.00 
5173070,UNITED UTILITIES WATER PLC,Education Services,Childrens Services,Metered Water Costs,,17/09/14,"2,145.07 "
5173085,,Children's Services,Childrens Services,Foster Carer Agency Fees,Redacted Supplier,25/09/14,"3,165.00 "
5173086,,Children's Services,Childrens Services,Foster Carer Agency Fees,Redacted Supplier,25/09/14,"3,006.60 "
5173088,,Children's Services,Childrens Services,Foster Carer Agency Fees,Redacted Supplier,15/09/14,"4,380.30 "
5173090,,Children's Services,Childrens Services,Foster Carer Agency Fees,Redacted Supplier,15/09/14,"3,518.50 "
5173091,CASH BOX CREDIT UNION,Neighbourhoods & Communities,"Community, Adult & Adults Early Intervention",Emergency Grant Payments,,04/09/14,"20,000.00 "
5173094,CASH BOX CREDIT UNION LTD,Neighbourhoods & Communities,"Community, Adult & Adults Early Intervention",Professional Services,,04/09/14,"5,333.33 "
5173097,MIDA SIGN SERVICES UK,Neighbourhoods & Communities,"Community, Adult & Adults Early Intervention",Contingency Provisions,,08/09/14,"1,495.00 "
5173100,,Children's Services,Childrens Services,Childrens Homes Outside Local Authority Fees,Redacted Supplier,29/09/14,"9,848.70 "
5173102,AZHAR ENTERPRISES,Neighbourhoods & Communities,"Community, Adult & Adults Early Intervention",Purchase Books,,15/09/14,710.00 
5173113,THE FAMILY UNIT LTD,Children's Services,Childrens Services,Living With Formal Support,,05/09/14,937.00 
5173114,MAKING SPACE,Adult Services,"Community, Adult & Adults Early Intervention",Voluntary Organisations Fees,,05/09/14,"20,735.75 "
5173117,MIDLAND SOFTWARE LTD,People & Performance,Director of Governance,Licences,,24/09/14,"23,963.93 "
5173118,FOUNDATION (CENTRAL SERVICES),Neighbourhoods & Communities,"Community, Adult & Adults Early Intervention",Supporting People Gross Contract,,29/09/14,"35,000.00 "
5173121,INTACT PROJECTS LIMITED,SCYP ,Childrens Services,Living With Formal Support,,03/09/14,949.00 
5173124,,Children's Services,Childrens Services,Foster Carer Agency Fees,Redacted Supplier,08/09/14,"3,814.50 "
5173126,STOCKPORT NHS FOUNDATION TRUST,Public Health,Public Health,Professional Services,,04/09/14,"289,595.00 "
5173127,NEW CHARTER HOUSING TRUST GROUP,Children's Services,Childrens Services,Planning Fees,,04/09/14,"3,458.83 "
5173127,NEW CHARTER HOUSING TRUST GROUP,Neighbourhoods & Communities,"Community, Adult & Adults Early Intervention",Supporting People Gross Contract,,04/09/14,"26,433.08 "
5173127,NEW CHARTER HOUSING TRUST GROUP,Public Health,Public Health,Supporting People Gross Contract,,04/09/14,"13,176.25 "
5173129,CARE IN MIND LTD,Adult Services,"Community, Adult & Adults Early Intervention",Residential Home Short Stay Fees,,29/09/14,"11,054.60 "
5173136,,Children's Services,Childrens Services,Childrens Homes Outside Local Authority Fees,Redacted Supplier,04/09/14,"11,785.71 "
5173142,,Children's Services,Childrens Services,Childrens Homes Outside Local Authority Fees,Redacted Supplier,04/09/14,"11,680.50 "
5173144,SPECIALIST COMPUTER CENTRES LIMITED,Digital Tameside,Places,It Equipment,,25/09/14,"1,216.50 "
5173145,SPECIALIST COMPUTER CENTRES LIMITED,Digital Tameside,Places,It Equipment,,29/09/14,"19,439.30 "
5173148,DOMAIN CARE NORTH WEST LTD,Adult Services,"Community, Adult & Adults Early Intervention",Homecare Fees,,15/09/14,"3,960.00 "
5173149,DOMAIN CARE NORTH WEST LTD,Adult Services,"Community, Adult & Adults Early Intervention",Homecare Fees,,15/09/14,639.60 
5173150,DOMAIN CARE NORTH WEST LTD,Adult Services,"Community, Adult & Adults Early Intervention",Homecare Fees,,15/09/14,"1,440.00 "
5173152,DOMAIN CARE NORTH WEST LTD,Adult Services,"Community, Adult & Adults Early Intervention",Homecare Fees,,15/09/14,799.50 
5173155,PHS GROUP PLC,Environmental Services,Places,Purchase Wheeled Bins,,15/09/14,"2,266.11 "
5173157,TRANSITIONAL PLUS CARE CIC LTD,Children's Services,Childrens Services,Living With Formal Support,,05/09/14,"3,642.86 "
5173158,TRANSITIONAL PLUS CARE CIC LTD,SCYP ,Childrens Services,Living With Formal Support,,04/09/14,"3,642.86 "
5173159,CHESTERS,Exchequer,Director of Finance,Miscellaneous Expenses,,04/09/14,726.95 
5173161,CREAMLINE DAIRIES (STOCKPORT) LTD,Education Services,Childrens Services,Milk For Under 5 Year Olds,,04/09/14,"34,252.15 "
5173162,DENTON LINKS,Education Services,Childrens Services,Transport Of Ola Pupils,,04/09/14,"2,839.00 "
5173163,DENTON LINKS,Education Services,Childrens Services,Transport Of Ola Pupils,,04/09/14,"1,350.00 "
5173164,DENTON LINKS,Education Services,Childrens Services,Transport Of Ola Pupils,,04/09/14,"2,070.00 "
5173165,DENTON LINKS,Children's Services,Childrens Services,Hired Transport,,04/09/14,"1,710.00 "
5173168,NEW CHARTER HOUSING TRUST GROUP,Neighbourhoods & Communities,"Community, Adult & Adults Early Intervention",Housing Aid Function,,04/09/14,"37,018.78 "
5173169,THRESHOLD HOUSING PROJECT,Neighbourhoods & Communities,"Community, Adult & Adults Early Intervention",Supporting People Gross Contract,,15/09/14,"30,833.33 "
5173170,THRESHOLD HOUSING PROJECT,Neighbourhoods & Communities,"Community, Adult & Adults Early Intervention",Supporting People Gross Contract,,15/09/14,"14,666.66 "
5173173,NEW CHARTER HOUSING TRUST GROUP,Neighbourhoods & Communities,"Community, Adult & Adults Early Intervention",Contributions,,11/09/14,"4,166.66 "
5173184,NPOWER LIMITED,Technical,Places,Electricity,,08/09/14,634.74 
5173185,JOHN PACKER LIMITED,Education Services,Childrens Services,Educational Equipment,,25/09/14,"7,194.00 "
5173188,,Children's Services,Childrens Services,Foster Carer Agency Fees,Redacted Supplier,10/09/14,799.00 
5173189,NEW CHARTER HOUSING TRUST GROUP,Neighbourhoods & Communities,"Community, Adult & Adults Early Intervention",Supporting People Gross Contract,,04/09/14,"20,022.16 "
5173191,HECTARE 8 CONTRACTS LTD,Operations,Places,Professional Weedspraying Services,,24/09/14,"4,400.00 "
5173192,JOHN PACKER LIMITED,Education Services,Childrens Services,Educational Equipment,,25/09/14,"15,000.00 "
5173194,OSTINATO MUSIC LTD,Education Services,Childrens Services,Professional Services,,11/09/14,"1,891.70 "
5173195,COMMUNITY AND VOLUNTARY ACTION TAMESIDE,Public Health,Public Health,Professional Services,,05/09/14,"59,300.00 "
5173196,,Children's Services,Childrens Services,Childrens Homes Outside Local Authority Fees,Redacted Supplier,29/09/14,"8,850.00 "
5173197,ADASS,Adult Services,"Community, Adult & Adults Early Intervention",Subscriptions,,10/09/14,"1,661.00 "
5173201,MANCHESTER DOGS HOME,Environmental Services,Places,Professional Consultancy Services,,08/09/14,962.72 
5173205,COMMUNITY INTEGRATED CARE,Adult Services,"Community, Adult & Adults Early Intervention",Homecare Fees,,25/09/14,"18,360.00 "
5173209,,Children's Services,Childrens Services,Childrens Homes Outside Local Authority Fees,Redacted Supplier,29/09/14,"19,975.16 "
5173212,MANCHESTER DOGS HOME,Environmental Services,Places,Professional Consultancy Services,,22/09/14,"1,400.32 "
5173222,,Children's Services,Childrens Services,Foster Carer Agency Fees,Redacted Supplier,29/09/14,"8,250.00 "
5173224,,Children's Services,Childrens Services,Childrens Homes Outside Local Authority Fees,Redacted Supplier,25/09/14,"4,650.00 "
5173226,,Children's Services,Childrens Services,Childrens Homes Outside Local Authority Fees,Redacted Supplier,29/09/14,"3,407.10 "
5173230,VODAFONE,Multiple Heads of Service,Multiple Strategic Directorates,Debits,,18/09/14,"1,890.18 "
5173239,IAN COOK,Asset Mgmt & Investment Partnership Mgmt,Places,Hired Transport,Business Payment,17/09/14,504.00 
5173240,GEORGE HOUSE TRUST,Public Health,Public Health,Professional Services,,17/09/14,"1,750.00 "
5173243,TAMESIDE RADIO,Technical,Places,Statutory Advertising,,04/09/14,620.00 
5173248,UPDATA INFRASTRUCTURE UK LTD,Multiple Heads of Service,Multiple Strategic Directorates,Communications Equipment,,25/09/14,"6,578.75 "
5173250,ADULLAM HOMES HOUSING ASSOC LTD,Neighbourhoods & Communities,"Community, Adult & Adults Early Intervention",Supporting People Gross Contract,,11/09/14,"37,226.00 "
5173252,,Adult Services,"Community, Adult & Adults Early Intervention",Contribution to Maintenance Fee Income,Redacted Supplier,05/09/14,"1,017.32 "
5173254, ,Adult Services,"Community, Adult & Adults Early Intervention",Homecare Fees,Redacted Supplier,05/09/14,"1,286.04 "
5173255,,Adult Services,"Community, Adult & Adults Early Intervention",Homecare Fees,Redacted Supplier,10/09/14,"2,178.90 "
5173258,,Adult Services,"Community, Adult & Adults Early Intervention",Homecare Fees,Redacted Supplier,05/09/14,"1,173.53 "
5173259,,Adult Services,"Community, Adult & Adults Early Intervention",Contribution to Maintenance Fee Income,Redacted Supplier,05/09/14,639.43 
5173264,,Adult Services,"Community, Adult & Adults Early Intervention",Day Care Fees,Redacted Supplier,05/09/14,476.96 
5173264,,Adult Services,"Community, Adult & Adults Early Intervention",Residential Home Short Stay Fees,Redacted Supplier,05/09/14,84.12 
5173288,STONE SOUP,Neighbourhoods & Communities,"Community, Adult & Adults Early Intervention",Professional Entertainment Services,,05/09/14,564.93 
5173298,STONE SOUP,Neighbourhoods & Communities,"Community, Adult & Adults Early Intervention",Professional Entertainment Services,,05/09/14,"3,060.00 "
5173300,STONE SOUP,Neighbourhoods & Communities,"Community, Adult & Adults Early Intervention",Professional Entertainment Services,,05/09/14,"4,671.00 "
5173303,STONE SOUP,Neighbourhoods & Communities,"Community, Adult & Adults Early Intervention",Professional Entertainment Services,,05/09/14,513.00 
5173311,,Adult Services,"Community, Adult & Adults Early Intervention",Day Care Fees,Redacted Supplier,05/09/14,928.98 
5173312,STONE SOUP,Neighbourhoods & Communities,"Community, Adult & Adults Early Intervention",Professional Entertainment Services,,05/09/14,905.00 
5173316,MOSSCARE HOUSING LTD,Adult Services,"Community, Adult & Adults Early Intervention",Non-Authority Accommodation Rental,,10/09/14,"28,480.93 "
5173318,MOSSCARE HOUSING LTD,Adult Services,"Community, Adult & Adults Early Intervention",Non-Authority Accommodation Rental,,10/09/14,"28,480.93 "
5173320,MOSSCARE HOUSING LTD,Adult Services,"Community, Adult & Adults Early Intervention",Non-Authority Accommodation Rental,,10/09/14,"28,480.93 "
5173329,INTACT PROJECTS LIMITED,SCYP ,Childrens Services,Living With Formal Support,,10/09/14,819.00 
5173330,UNITED UTILITIES WATER PLC,Technical,Places,Water Rates,,10/09/14,"1,541.03 "
5173335,INTACT PROJECTS LIMITED,Children's Services,Childrens Services,Living With Formal Support,,10/09/14,949.00 
5173336,TIPTOES CHILD THERAPY SERVICES (LTD),Children's Services,Childrens Services,Child Care Fees,,05/09/14,985.00 
5173338,INTACT PROJECTS LIMITED,Children's Services,Childrens Services,Living With Formal Support,,05/09/14,880.10 
5173342,INTACT PROJECTS LIMITED,Children's Services,Childrens Services,Living With Formal Support,,10/09/14,910.00 
5173343,PLANTATION INVESTMENTS LIMITED,Tameside Investment Partnership,Places,Chief/Ground Rent,,24/09/14,"53,337.00 "
5173350,,Children's Services,Childrens Services,Childrens Homes Outside Local Authority Fees,Redacted Supplier,15/09/14,"9,200.00 "
5173359,,Children's Services,Childrens Services,Foster Carer Agency Fees,Redacted Supplier,29/09/14,"3,638.70 "
5173360,NORTHGATE INFORMATION SOLUTIONS UK LTD,Exchequer,Director of Finance,Computer Software,,11/09/14,"29,938.05 "
5173361,,Children's Services,Childrens Services,Foster Carer Agency Fees,Redacted Supplier,11/09/14,799.00 
5173363,,Children's Services,Childrens Services,Foster Carer Agency Fees,Redacted Supplier,11/09/14,"3,272.67 "
5173365,STOCKPORT NHS FOUNDATION TRUST,Children's Services,Childrens Services,Homecare Fees,,10/09/14,"2,363.75 "
5173366,,Children's Services,Childrens Services,Foster Carer Agency Fees,Redacted Supplier,11/09/14,"3,420.54 "
5173389,PROFILE SECURITY SERVICES LIMITED,Technical,Places,Security Services,,25/09/14,"2,352.47 "
5173392,PROFILE SECURITY SERVICES LIMITED,Tameside Investment Partnership,Places,Security Services,,25/09/14,"2,292.48 "
5173401,ROCH NDT SERVICES,Technical,Places,Reactive Works Engineers Recharge,,25/09/14,"9,920.00 "
5173402,CITY LIFT SERVICES (NW) LTD,Adult Services,"Community, Adult & Adults Early Intervention",Adaptations To Buildings,,17/09/14,500.00 
5173407,PENNINE CARE NHS TRUST,Adult Services,"Community, Adult & Adults Early Intervention",Professional Services,,17/09/14,"7,296.00 "
5173408,EFFECTIVE TRAINING AND DEVELOPMENT,Neighbourhoods & Communities,"Community, Adult & Adults Early Intervention",Contingency Provisions,,24/09/14,622.00 
5173410,PEOPLE FIRST TAMESIDE,Public Health,Public Health,Professional Services,,10/09/14,"19,950.00 "
5173416,ALTERNATIVE FUTURES GROUP,Adult Services,"Community, Adult & Adults Early Intervention",Homecare Fees,,11/09/14,"3,525.38 "
5173417,BT PLC,Multiple Heads of Service,Multiple Strategic Directorates,Telephone Landline Costs,,08/09/14,"2,635.81 "
5173419,BT PLC,Multiple Heads of Service,Multiple Strategic Directorates,Telephone Landline Costs,,08/09/14,911.49 
5173420,ROCHDALE MBC,Other Services,Director of Finance,Professional Services,,17/09/14,"4,204.85 "
5173430,TAMESIDE SPORTS TRUST,Cultural and Customer Services,"Community,Environmental,Adult and Health Services",Adaptations - Small Jobs,,08/09/14,"6,284.40 "
5173431,HOWARD COOK,Education Services,Childrens Services,Nursery Services,Business Payment,10/09/14,680.00 
5173432,DIRECT CARE (NORTH WEST) LTD,Adult Services,"Community, Adult & Adults Early Intervention",Homecare Fees,,08/09/14,"3,826.61 "
5173433,DIRECT CARE (NORTH WEST) LTD,Adult Services,"Community, Adult & Adults Early Intervention",Homecare Fees,,08/09/14,"4,400.47 "
5173434,DIRECT CARE (NORTH WEST) LTD,Adult Services,"Community, Adult & Adults Early Intervention",Homecare Fees,,08/09/14,"4,390.99 "
5173435,DIRECT CARE (NORTH WEST) LTD,Adult Services,"Community, Adult & Adults Early Intervention",Homecare Fees,,08/09/14,"4,271.08 "
5173436,DIRECT CARE (NORTH WEST) LTD,Adult Services,"Community, Adult & Adults Early Intervention",Homecare Fees,,08/09/14,"4,351.02 "
5173437,COMFORT CALL LIMITED,Adult Services,"Community, Adult & Adults Early Intervention",Homecare Fees,,10/09/14,"27,556.69 "
5173440,COMFORT CALL LIMITED,Adult Services,"Community, Adult & Adults Early Intervention",Homecare Fees,,10/09/14,"28,600.48 "
5173441,,Children's Services,Childrens Services,Foster Carer Agency Fees,Redacted Supplier,08/09/14,"4,050.00 "
5173445,ABLE CARE AND SUPPORT SERVICES LTD,Adult Services,"Community, Adult & Adults Early Intervention",Homecare Fees,,08/09/14,"2,045.15 "
5173446,CARE UK HOMECARE,Adult Services,"Community, Adult & Adults Early Intervention",Homecare Fees,,08/09/14,"29,821.43 "
5173447,HOUSING AND CARE 21,Adult Services,"Community, Adult & Adults Early Intervention",Homecare Fees,,17/09/14,"14,080.66 "
5173448,RICHARD DAWSON,Neighbourhoods & Communities,"Community, Adult & Adults Early Intervention",Professional Entertainment Services,Business Payment,08/09/14,"9,085.00 "
5173462,TRAVELERS INSURANCE COMPANY LTD,Multiple Heads of Service,Multiple Strategic Directorates,Reimbursement Paid To Insurers,,10/09/14,"32,014.28 "
5173464,ELECTRICITY NORTH WEST LTD,Technical,Places,Reactive Works Engineers Recharge,,11/09/14,609.99 
5173466,ELECTRICITY NORTH WEST LTD,Technical,Places,Reactive Works Engineers Recharge,,10/09/14,609.99 
5173467,UNITED UTILITIES WATER PLC,Tameside Investment Partnership,Places,Metered Water Costs,,17/09/14,"1,541.03 "
5173469,ELECTRICITY NORTH WEST LTD,Technical,Places,Reactive Works Engineers Recharge,,10/09/14,609.99 
5173471,ELECTRICITY NORTH WEST LTD,Technical,Places,Reactive Works Engineers Recharge,,10/09/14,609.99 
5173473,UNITED UTILITIES WATER PLC,Tameside Investment Partnership,Places,Metered Water Costs,,17/09/14,"1,475.59 "
5173474,ELECTRICITY NORTH WEST LTD,Technical,Places,Reactive Works Engineers Recharge,,11/09/14,609.99 
5173493,,Children's Services,Childrens Services,Foster Carer Agency Fees,Redacted Supplier,29/09/14,"3,747.00 "
5173499,NEW CHARTER HOUSING TRUST GROUP,Adult Services,"Community, Adult & Adults Early Intervention",Non-Authority Accommodation Rental,,10/09/14,"2,456.40 "
5173501,CBS (NORTH WEST) LTD,Operations,Places,Electrical Works,,10/09/14,712.67 
5173511,JACQUI SYMONS,Neighbourhoods & Communities,"Community, Adult & Adults Early Intervention",Professional Entertainment Services,Business Payment,08/09/14,"1,430.00 "
5173517,RANDSTAD EDUCATION LIMITED,Education Services,Childrens Services,Agency Staff,,10/09/14,550.00 
5173519,RANDSTAD EDUCATION LIMITED,Education Services,Childrens Services,Agency Staff,,10/09/14,531.62 
5173522,RANDSTAD EDUCATION LIMITED,Education Services,Childrens Services,Agency Staff,,10/09/14,840.00 
5173525,RANDSTAD EDUCATION LIMITED,Education Services,Childrens Services,Agency Staff,,10/09/14,"1,050.00 "
5173527,RANDSTAD EDUCATION LIMITED,Education Services,Childrens Services,Agency Staff,,10/09/14,"1,050.00 "
5173528,RANDSTAD EDUCATION LIMITED,Education Services,Childrens Services,Agency Staff,,10/09/14,575.00 
5173530,RANDSTAD EDUCATION LIMITED,Education Services,Childrens Services,Agency Staff,,10/09/14,995.00 
5173532,RANDSTAD EDUCATION LIMITED,Education Services,Childrens Services,Agency Staff,,10/09/14,575.00 
5173533,RANDSTAD EDUCATION LIMITED,Education Services,Childrens Services,Agency Staff,,10/09/14,995.00 
5173534,RANDSTAD EDUCATION LIMITED,Education Services,Childrens Services,Agency Staff,,10/09/14,575.00 
5173535,RANDSTAD EDUCATION LIMITED,Education Services,Childrens Services,Agency Staff,,10/09/14,995.00 
5173536,RANDSTAD EDUCATION LIMITED,Education Services,Childrens Services,Agency Staff,,10/09/14,995.00 
5173537,STOCKPORT NHS FOUNDATION TRUST,Education Services,Childrens Services,Professional Services,,10/09/14,"3,333.00 "
5173539,RANDSTAD EDUCATION LIMITED,Education Services,Childrens Services,Agency Staff,,10/09/14,"1,050.00 "
5173540,RANDSTAD EDUCATION LIMITED,Education Services,Childrens Services,Agency Staff,,10/09/14,518.00 
5173541,RANDSTAD EDUCATION LIMITED,Education Services,Childrens Services,Agency Staff,,10/09/14,"1,050.00 "
5173542,VISION FOR EDUCATION LIMITED,Education Services,Childrens Services,Agency Staff,,10/09/14,575.00 
5173553,UNITED UTILITIES WATER PLC,Tameside Investment Partnership,Places,Metered Water Costs,,17/09/14,905.28 
5173554,UNITED UTILITIES WATER PLC,Tameside Investment Partnership,Places,Metered Water Costs,,17/09/14,736.68 
5173555,UNITED UTILITIES WATER PLC,Tameside Investment Partnership,Places,Metered Water Costs,,17/09/14,736.68 
5173556,UNITED UTILITIES WATER PLC,Tameside Investment Partnership,Places,Metered Water Costs,,17/09/14,736.68 
5173558,UNITED UTILITIES WATER PLC,Tameside Investment Partnership,Places,Metered Water Costs,,17/09/14,736.68 
5173561,UNITED UTILITIES WATER PLC,Tameside Investment Partnership,Places,Metered Water Costs,,17/09/14,"1,541.03 "
5173563,UNITED UTILITIES WATER PLC,Tameside Investment Partnership,Places,Metered Water Costs,,17/09/14,736.68 
5173564,UNITED UTILITIES WATER PLC,Tameside Investment Partnership,Places,Metered Water Costs,,17/09/14,736.68 
5173571,UNITED UTILITIES WATER PLC,Tameside Investment Partnership,Places,Metered Water Costs,,17/09/14,736.68 
5173581,THE CONSERVATION VOLUNTEERS,Operations,Places,Voluntary Organisations Fees,,25/09/14,960.00 
5173585,SPECIALISED HOMES AND LODGINGS LTD,SCYP ,Childrens Services,Living With Formal Support,,25/09/14,"3,214.28 "
5173588,HOWARD COOK,Education Services,Childrens Services,APT&C Basic Pay,Business Payment,10/09/14,680.00 
5173597,NEW CHARTER HOUSING TRUST GROUP,Neighbourhoods & Communities,"Community, Adult & Adults Early Intervention",Lettings/Waiting List,,10/09/14,"7,848.62 "
5173606,VISION FOR EDUCATION LIMITED,Education Services,Childrens Services,Agency Staff,,10/09/14,575.00 
5173607,CORONA ENERGY RETAIL 4 LIMITED,Tameside Investment Partnership,Places,Gas,,17/09/14,563.39 
5173610,A&C WORKWEAR DESIGN LTD,Education Services,Childrens Services,Uniforms/Clothing,,10/09/14,738.00 
5173613,UNITED UTILITIES WATER PLC,Operations,Places,Water Rates,,11/09/14,"1,541.03 "
5173614,FRONTIER MEDICAL PRODUCTS,Public Health,Public Health,Local Enhanced Services,,25/09/14,"2,753.25 "
5173624,MEDICO NURSING AND HOMECARE,Adult Services,"Community, Adult & Adults Early Intervention",Homecare Fees,,10/09/14,"9,575.35 "
5173628,,Children's Services,Childrens Services,Homecare Fees,Redacted Supplier,10/09/14,"7,113.75 "
5173629,ROYAL MENCAP SOCIETY,Adult Services,"Community, Adult & Adults Early Intervention",Voluntary Organisations Fees,,11/09/14,"9,600.00 "
5173631,MEDICO NURSING AND HOMECARE,Adult Services,"Community, Adult & Adults Early Intervention",Homecare Fees,,10/09/14,"9,424.33 "
5173632,UNITED UTILITIES WATER PLC,Tameside Investment Partnership,Places,Metered Water Costs,,17/09/14,736.68 
5173634,,Children's Services,Childrens Services,Childrens Homes Outside Local Authority Fees,Redacted Supplier,29/09/14,"12,642.90 "
5173635,BRITISH GAS BUSINESS - PAYMENT AREA 60,Tameside Investment Partnership,Places,Gas,,17/09/14,557.26 
5173637,SPECIALISED HOMES AND LODGINGS LTD,SCYP ,Childrens Services,Living With Formal Support,,29/09/14,"10,774.28 "
5173638,TEACHING PERSONNEL LTD,Education Services,Childrens Services,Agency Staff,,10/09/14,"2,611.00 "
5173640,MISS JANE CROSS QC,Children's Services,Childrens Services,Legal Fees,Business Payment,11/09/14,"1,975.00 "
5173642,VODAFONE,Multiple Heads of Service,Multiple Strategic Directorates,Debits,,18/09/14,"4,400.00 "
5173643,VODAFONE,Multiple Heads of Service,Multiple Strategic Directorates,Debits,,18/09/14,"1,890.18 "
5173653,,Children's Services,Childrens Services,Foster Carer Agency Fees,Redacted Supplier,10/09/14,"2,825.00 "
5173654,DAISY COMMUNICATIONS LTD,Multiple Heads of Service,Multiple Strategic Directorates,Debits,,29/09/14,"5,210.21 "
5173663,ALTERNATIVE FUTURES GROUP,Adult Services,"Community, Adult & Adults Early Intervention",Homecare Fees,,18/09/14,"117,512.84 "
5173664,,SCYP ,Childrens Services,Living With Formal Support,Redacted Supplier,15/09/14,"8,848.33 "
5173668,CBS (NORTH WEST) LTD,Technical,Places,Building Works,,17/09/14,"1,600.00 "
5173670,CBS (NORTH WEST) LTD,Technical,Places,Engineers Works,,11/09/14,780.00 
5173672,NPOWER LIMITED,Tameside Investment Partnership,Places,Electricity,,17/09/14,"1,246.42 "
5173681,COMMUNITY LED INITIATIVES CIC,Public Health,Public Health,Professional Services,,17/09/14,"12,500.00 "
5173684,MOSSLEY PRIVATE HIRE,Asset Mgmt & Investment Partnership Mgmt,Places,Hired Transport,,17/09/14,600.00 
5173685,RICHARD L THOMAS ASSOCIATES LTD,Environmental Services,"Economic Growth, Investment and Sustainability",Engineers -External,,10/09/14,"1,199.55 "
5173711,PENNINE CARE NHS TRUST,Public Health,Public Health,Professional Services,,11/09/14,"273,285.00 "
5173713,,Children's Services,Childrens Services,Foster Carer Agency Fees,Redacted Supplier,10/09/14,"3,251.85 "
5173715,UNITED UTILITIES WATER PLC,Tameside Investment Partnership,Places,Metered Water Costs,,17/09/14,"1,541.03 "
5173725,,Children's Services,Childrens Services,Foster Carer Agency Fees,Redacted Supplier,10/09/14,"3,183.39 "
5173726,INTACT PROJECTS LIMITED,Children's Services,Childrens Services,Living With Formal Support,,10/09/14,494.00 
5173726,INTACT PROJECTS LIMITED,SCYP ,Childrens Services,Living With Formal Support,,10/09/14,455.00 
5173727,INTACT PROJECTS LIMITED,SCYP ,Childrens Services,Living With Formal Support,,17/09/14,949.00 
5173730,,Children's Services,Childrens Services,Foster Carer Agency Fees,Redacted Supplier,10/09/14,"2,978.70 "
5173731,FUSION CARE,SCYP ,Childrens Services,Living With Formal Support,,10/09/14,"2,555.00 "
5173732,JULIE BURNELL,Education Services,Childrens Services,Professional Services,Business Payment,10/09/14,"4,200.00 "
5173757,BRIGHTON & HOVE CITY COUNCIL,Multiple Heads of Service,Multiple Strategic Directorates,Debits,,22/09/14,"97,082.04 "
5173762,W V HOWE LIMITED,Asset Mgmt & Investment Partnership Mgmt,Places,Purchase Light Catering Equipment,,17/09/14,509.16 
5173765,VODAFONE,Multiple Heads of Service,Multiple Strategic Directorates,Debits,,18/09/14,"1,890.18 "
5173766,PROGRESS CARE HOUSING ASSOCIATION LIMITED,Adult Services,"Community, Adult & Adults Early Intervention",Non-Authority Accommodation Rental,,11/09/14,"5,316.08 "
5173770,BIRMINGHAM CITY COUNCIL EDUCATION SERVICES,Multiple Heads of Service,Multiple Strategic Directorates,Debits,,22/09/14,"11,979.03 "
5173781,PROFILE SECURITY SERVICES LIMITED,Neighbourhoods & Communities,"Community, Adult & Adults Early Intervention",Security Equipment,,15/09/14,"10,602.62 "
5173782,PROFILE SECURITY SERVICES LIMITED,Neighbourhoods & Communities,"Community, Adult & Adults Early Intervention",Security Equipment,,15/09/14,"10,295.79 "
5173783,PROFILE SECURITY SERVICES LIMITED,Neighbourhoods & Communities,"Community, Adult & Adults Early Intervention",Security Equipment,,25/09/14,"10,404.69 "
5173791,BRIGHTON & HOVE CITY COUNCIL,Multiple Heads of Service,Multiple Strategic Directorates,Debits,,22/09/14,"230,000.00 "
5173796,MR L DUNKLEY,Neighbourhoods & Communities,"Community, Adult & Adults Early Intervention",Professional Entertainment Services,Business Payment,10/09/14,500.00 
5173810,,Adult Services,"Community, Adult & Adults Early Intervention",Professional Introduction Services,Redacted Supplier,11/09/14,15.00 
5173810,,Adult Services,"Community, Adult & Adults Early Intervention",Residential Home Short Stay Fees,Redacted Supplier,11/09/14,588.84 
5173832,BT PLC,Housing,"Economic Growth, Investment and Sustainability",Cabling/Diversion Works,,15/09/14,"1,885.61 "
5173840,BOLTON MBC,Neighbourhoods & Communities,"Community, Adult & Adults Early Intervention",Contingency Provisions,,10/09/14,"4,529.23 "
5173842,PENDLE PRODUCTIONS,Neighbourhoods & Communities,"Community, Adult & Adults Early Intervention",Professional Entertainment Services,,10/09/14,"2,800.00 "
5173848,STOCKPORT MBC,Neighbourhoods & Communities,"Community, Adult & Adults Early Intervention",Contingency Provisions,,17/09/14,"3,000.00 "
5173850,MES LTD,Neighbourhoods & Communities,"Community, Adult & Adults Early Intervention",General Equipment Repair & Maintenance,,10/09/14,677.68 
5173856,STONEWORKS BUILD PROJECTS,Cultural and Customer Services,"Community,Environmental,Adult and Health Services",Adaptations - Small Jobs,,25/09/14,"2,053.80 "
5173861,AGE UK TAMESIDE,Adults Early Intervention,"Community, Adult & Adults Early Intervention",Age Concern Fees,,11/09/14,"4,660.00 "
5173867,,Adult Services,"Community, Adult & Adults Early Intervention",Day Care Fees,Redacted Supplier,11/09/14,527.84 
5173870,PAYPOINT COLLECTIONS LTD,Neighbourhoods & Communities,"Community, Adult & Adults Early Intervention",Emergency Grant Payments,,10/09/14,656.00 
5173872,PAYPOINT COLLECTIONS LTD,Neighbourhoods & Communities,"Community, Adult & Adults Early Intervention",Emergency Grant Payments,,10/09/14,597.00 
5173873,PAYPOINT COLLECTIONS LTD,Neighbourhoods & Communities,"Community, Adult & Adults Early Intervention",Emergency Grant Payments,,10/09/14,869.00 
5173875,OUR LIFE,Public Health,Public Health,Professional Services,,18/09/14,"2,900.00 "
5173877,AGE UK TAMESIDE,Adults Early Intervention,"Community, Adult & Adults Early Intervention",Professional Services,,11/09/14,"6,930.00 "
5173887,MR B SHARPLES,Adult Services,"Community, Adult & Adults Early Intervention",Contribution to Maintenance Fee Income,Business Payment,10/09/14,576.95 
5173895,PAYPARTNERS LTD (MONTHLY),Adult Services,"Community, Adult & Adults Early Intervention",Sub-contractor Services,,11/09/14,"5,432.00 "
5173896,VODAFONE,Audit & Risk Management,Director of Finance,Professional Consultancy Services,,15/09/14,"4,695.00 "
5173910,PENNINE CARE NHS TRUST,Children's Services,Childrens Services,Professional Child Services,,22/09/14,"7,991.67 "
5173914,EQUIFAX LTD,Audit & Risk Management,Director of Finance,Professional Services,,29/09/14,"2,355.20 "
5173915,G4S CASH SOLUTIONS (UK) LIMITED,Borough Solicitor,Director of Governance,Security Services,,15/09/14,54.32 
5173915,G4S CASH SOLUTIONS (UK) LIMITED,Environmental Services,Places,Security Services,,15/09/14,54.32 
5173915,G4S CASH SOLUTIONS (UK) LIMITED,Neighbourhoods & Communities,"Community, Adult & Adults Early Intervention",Security Services,,15/09/14,434.53 
5173921,BT PLC,Asset Mgmt & Investment Partnership Mgmt,Places,Telephone Landline Costs,,17/09/14,"2,040.18 "
5173925,BT PLC,Asset Mgmt & Investment Partnership Mgmt,Places,Cleaning Contractor Costs,,17/09/14,"1,963.23 "
5173926,BT PLC,Asset Mgmt & Investment Partnership Mgmt,Places,Telephone Landline Costs,,17/09/14,"1,963.23 "
5173936,P MCGUINNESS & CO LTD,Housing,"Economic Growth, Investment and Sustainability",Miscellaneous Fees,,29/09/14,700.00 
5173940,AGE UK TAMESIDE,Public Health,Public Health,Professional Services,,10/09/14,"13,000.00 "
5173941,AGE UK TAMESIDE,Adult Services,"Community, Adult & Adults Early Intervention",Age Concern Fees,,17/09/14,"11,473.22 "
5173942,AGE UK TAMESIDE,Adults Early Intervention,"Community, Adult & Adults Early Intervention",Age Concern Fees,,11/09/14,"3,501.67 "
5173943,AGE UK TAMESIDE,Adults Early Intervention,"Community, Adult & Adults Early Intervention",Professional Services,,11/09/14,"19,166.67 "
5173944,,Children's Services,Childrens Services,Childrens Homes Outside Local Authority Fees,Redacted Supplier,18/09/14,"13,980.00 "
5173946,CLIFTON CHILDREN'S SOCIETY (CSS ADOPTION),Children's Services,Childrens Services,Adoption Agency Fees,,15/09/14,"2,250.00 "
5173953,MR JOHN DELANEY,Education Services,Childrens Services,Transport Of Pupils,Business Payment,11/09/14,"1,710.00 "
5173954,QUAKER TRADING LIMITED,Other Services,Director of Finance,Refreshments,,18/09/14,151.20 
5173954,QUAKER TRADING LIMITED,Other Services,Director of Finance,Room Hire,,18/09/14,359.00 
5173956,JULIE STIRPE ASSOCIATES LTD,Children's Services,Childrens Services,Professional Consultancy Services,,15/09/14,653.70 
5173959,MISS RACHAEL HEPPENSTALL,Children's Services,Childrens Services,Legal Fees,Business Payment,11/09/14,750.00 
5173960,MR GRAHAM BAILEY,Children's Services,Childrens Services,Legal Fees,Business Payment,17/09/14,"2,600.00 "
5173962,THIRTYNINE,Sustainable Growth,Places,Legal Fees,,11/09/14,"4,859.35 "
5173963,SAS DANIELS LLP,Other Services,Director of Finance,Legal Fees,,11/09/14,"1,675.00 "
5173977,HMCTS - SALFORD BUSINESS CENTRE,Exchequer,Director of Finance,Court Fees,,15/09/14,"3,835.00 "
5173985,RICOH UK,Multiple Heads of Service,Multiple Strategic Directorates,Debits,,18/09/14,"1,019.59 "
5173991,CREATIVE SUPPORT LTD,Adult Services,"Community, Adult & Adults Early Intervention",Homecare Fees,,11/09/14,"14,700.00 "
5174018,CREATIVE SUPPORT LTD,Adult Services,"Community, Adult & Adults Early Intervention",Homecare Fees,,11/09/14,"14,700.00 "
5174035,ROYAL MAIL GROUP PLC,Exchequer,Director of Finance,Postages,,25/09/14,"1,708.24 "
5174061,HMCTS,Exchequer,Director of Finance,Postages,,24/09/14,"4,902.00 "
5174073,CREATIVE SUPPORT LTD,Adult Services,"Community, Adult & Adults Early Intervention",Homecare Fees,,11/09/14,"15,291.50 "
5174077,FORBES SOLICITORS,Multiple Heads of Service,Multiple Strategic Directorates,Claims Settled,,15/09/14,"11,868.77 "
5174082,,Children's Services,Childrens Services,Childrens Homes Outside Local Authority Fees,Redacted Supplier,11/09/14,"9,455.00 "
5174083,,Children's Services,Childrens Services,Childrens Homes Outside Local Authority Fees,Redacted Supplier,11/09/14,"9,964.33 "
5174084,ABLE CARE AND SUPPORT SERVICES LTD,Adult Services,"Community, Adult & Adults Early Intervention",Homecare Fees,,11/09/14,"2,186.47 "
5174087,NUTURE,Neighbourhoods & Communities,"Community, Adult & Adults Early Intervention",Emergency Grant Payments,,11/09/14,525.00 
5174088,HOUSING AND CARE 21,Adult Services,"Community, Adult & Adults Early Intervention",Homecare Fees,,17/09/14,"14,172.89 "
5174094,MRL HEALTHCARE LIMITED,Adult Services,"Community, Adult & Adults Early Intervention",Homecare Fees,,22/09/14,"13,246.29 "
5174094,MRL HEALTHCARE LIMITED,Resource Management,Director of Finance,Homecare Fees,,22/09/14,"14,250.58 "
5174100,MRL HEALTHCARE LIMITED,Adult Services,"Community, Adult & Adults Early Intervention",Homecare Fees,,29/09/14,"14,087.08 "
5174100,MRL HEALTHCARE LIMITED,Resource Management,Director of Finance,Homecare Fees,,29/09/14,"15,750.29 "
5174101,,Children's Services,Childrens Services,Childrens Homes Outside Local Authority Fees,Redacted Supplier,11/09/14,"9,455.00 "
5174104,JULIE CARTER,Adult Services,"Community, Adult & Adults Early Intervention",Professional Interpreter Services,Business Payment,15/09/14,"1,459.75 "
5174106,ABLE CARE AND SUPPORT SERVICES LTD,Adult Services,"Community, Adult & Adults Early Intervention",Homecare Fees,,18/09/14,"2,045.15 "
5174107,NHS GREATER MANCHESTER CSU,Public Health,Public Health,Professional Services,,17/09/14,"2,500.00 "
5174108,ALTERNATIVE FUTURES GROUP,Adult Services,"Community, Adult & Adults Early Intervention",Homecare Fees,,18/09/14,"16,905.60 "
5174122,COMFORT CALL LIMITED,Adult Services,"Community, Adult & Adults Early Intervention",Homecare Fees,,18/09/14,"27,942.72 "
5174127,PRD PROPERTY SERVICES LTD,Borough Solicitor,Director of Governance,Legal Fees,,17/09/14,"4,110.00 "
5174128,PATRICIA BUXTON,Children's Services,Childrens Services,Professional Services,Business Payment,15/09/14,537.41 
5174131,MARK HARLOW,Technical,Places,Hired Transport,Business Payment,15/09/14,600.00 
5174132,POST OFFICE,Technical,Places,Motor Licence Costs,,15/09/14,"1,485.00 "
5174133,NACRO,Education Services,Childrens Services,Professional Services,,17/09/14,"3,200.00 "
5174134,B MORRELL,Technical,Places,Hired Transport,Business Payment,15/09/14,900.00 
5174139,ELECTRICITY NORTH WEST LTD,Technical,Places,Reactive Works Engineers Recharge,,25/09/14,609.99 
5174142,PERSON CENTRED CARE SERVICES LIMITED,Adult Services,"Community, Adult & Adults Early Intervention",Homecare Fees,,17/09/14,"1,767.09 "
5174143,SAICA NATUR UK LTD,Multiple Heads of Service,Multiple Strategic Directorates,Debits,,22/09/14,"10,001.50 "
5174145,PERSON CENTRED CARE SERVICES LIMITED,Adult Services,"Community, Adult & Adults Early Intervention",Homecare Fees,,17/09/14,"1,767.09 "
5174146,CARE IN MIND LTD,Children's Services,Childrens Services,Homecare Fees,,15/09/14,"4,788.26 "
5174147,THE FAMILY UNIT LTD,Adult Services,"Community, Adult & Adults Early Intervention",Homecare Fees,,25/09/14,"3,416.00 "
5174156,GREENSCAPE,Operations,Places,Agency Staff,,17/09/14,"1,163.94 "
5174180,LIME TRAVEL,Strategy & Early Intervention,Childrens Services,Hired Transport,,15/09/14,800.00 
5174181,LIME TRAVEL,Strategy & Early Intervention,Childrens Services,Hired Transport,,15/09/14,570.00 
5174187,PARKLANE,Technical,Places,Hired Transport,,15/09/14,"1,920.00 "
5174188,J & R TAXIS LTD,Technical,Places,Hired Transport,,15/09/14,"1,664.00 "
5174191,MARK HARLOW,Technical,Places,Hired Transport,Business Payment,15/09/14,689.00 
5174192,MARK HARLOW,Technical,Places,Hired Transport,Business Payment,15/09/14,"1,400.00 "
5174209,STEPHEN MARTLEW - LANDSCAPE ARTICHTECTRURE LTD,Operations,Places,Professional Photography Services,,15/09/14,"3,600.00 "
5174220,PARKLANE,Technical,Places,Hired Transport,,15/09/14,"1,584.00 "
5174221,MR JOHN DELANEY,Technical,Places,Hired Transport,Business Payment,15/09/14,"1,700.00 "
5174223,MOSSLEY PRIVATE HIRE,Technical,Places,Hired Transport,,15/09/14,765.00 
5174224,MOSSLEY PRIVATE HIRE,Strategy & Early Intervention,Childrens Services,Hired Transport,,15/09/14,"1,610.00 "
5174254,STOCKPORT NHS FOUNDATION TRUST,Education Services,Childrens Services,Professional Services,,17/09/14,"3,333.00 "
5174255,RANDSTAD EDUCATION LIMITED,Education Services,Childrens Services,Agency Staff,,17/09/14,693.14 
5174263,ROBINSON & JORDAN FUNERAL SERVICES,Environmental Services,Places,Burial Fees,,15/09/14,"1,385.00 "
5174277,HALTON BOROUGH COUNCIL,Children's Services,Childrens Services,Room Hire,,17/09/14,880.00 
5174297,DWYERS SOLICITORS,Environmental Services,"Economic Growth, Investment and Sustainability",Acquisition - Buildings,,17/09/14,"119,250.00 "
5174299,DWYERS SOLICITORS,Environmental Services,"Economic Growth, Investment and Sustainability",Acquisition - Buildings,,17/09/14,"144,000.00 "
5174301,,Children's Services,Childrens Services,Foster Carer Agency Fees,Redacted Supplier,15/09/14,"2,927.40 "
5174313,PG FABRICATIONS,Operations,Places,General Materials,,22/09/14,915.00 
5174317,ELECTRICITY NORTH WEST LTD,Engineers Client,"Economic Growth, Investment and Sustainability",Contractor Expenditure,,25/09/14,609.99 
5174328,ELECTRICITY NORTH WEST LTD,Environmental Services,"Economic Growth, Investment and Sustainability",Engineers -External,,17/09/14,"2,958.24 "
5174352,STEP AHEAD RESOURCE SERVICES,SCYP ,Childrens Services,Living Without Formal Support,,18/09/14,750.00 
5174359,PAYPARTNERS LTD (MONTHLY),Adult Services,"Community, Adult & Adults Early Intervention",Sub-contractor Services,,25/09/14,882.00 
5174360,,Children's Services,Childrens Services,Childrens Homes Outside Local Authority Fees,Redacted Supplier,25/09/14,"15,500.00 "
5174361,,Children's Services,Childrens Services,Childrens Homes Outside Local Authority Fees,Redacted Supplier,25/09/14,"8,000.00 "
5174366,GRANT THORNTON UK LLP,Other Services,Director of Finance,Audit Commission Fees,,22/09/14,"34,638.25 "
5174376,,Children's Services,Childrens Services,Foster Carer Agency Fees,Redacted Supplier,17/09/14,"2,927.40 "
5174385,MR ROGER WHALLEY,Sustainable Growth,Places,Professional Consultancy Services,Business Payment,17/09/14,"3,192.45 "
5174388,RICHARD DAWSON,Neighbourhoods & Communities,"Community, Adult & Adults Early Intervention",Professional Entertainment Services,Business Payment,17/09/14,"4,612.90 "
5174390,,Children's Services,Childrens Services,Foster Carer Agency Fees,Redacted Supplier,29/09/14,"3,379.00 "
5174395,PROFILE SECURITY SERVICES LIMITED,Operations,Places,General Materials,,25/09/14,"6,813.18 "
5174396,MANCHESTER DOGS HOME,Environmental Services,Places,Professional Consultancy Services,,17/09/14,"1,304.71 "
5174398,SHERIDAN DESIGN,Neighbourhoods & Communities,"Community, Adult & Adults Early Intervention",Contingency Provisions,,25/09/14,"7,550.00 "
5174402,MANCHESTER DOGS HOME,Environmental Services,Places,Professional Consultancy Services,,18/09/14,"1,259.72 "
5174405,MANCHESTER DOGS HOME,Environmental Services,Places,Professional Consultancy Services,,17/09/14,"1,709.62 "
5174407,STONE SOUP,Neighbourhoods & Communities,"Community, Adult & Adults Early Intervention",Professional Entertainment Services,,17/09/14,"10,807.09 "
5174408,FACILITY SOLUTIONS NORTHWEST,Tameside Investment Partnership,Places,Security Services,,25/09/14,"1,824.00 "
5174412,,Children's Services,Childrens Services,Foster Carer Agency Fees,Redacted Supplier,29/09/14,"3,410.00 "
5174417,BUSINESS IN THE COMMUNITY,Neighbourhoods & Communities,"Community, Adult & Adults Early Intervention",Contingency Provisions,,25/09/14,"5,000.00 "
5174427,,Children's Services,Childrens Services,Cash Grants,Redacted Supplier,17/09/14,500.00 
5174428,FRONTIER MEDICAL PRODUCTS,Public Health,Public Health,Local Enhanced Services,,17/09/14,"4,463.80 "
5174451,THE PERFORMING RIGHT SOCIETY,Tameside Investment Partnership,Places,Licences,,22/09/14,"1,106.45 "
5174454,THE PERFORMING RIGHT SOCIETY,Tameside Investment Partnership,Places,Licences,,22/09/14,"2,539.84 "
5174456,THE PERFORMING RIGHT SOCIETY,Tameside Investment Partnership,Places,Licences,,22/09/14,"7,198.33 "
5174458,THE PERFORMING RIGHT SOCIETY,Tameside Investment Partnership,Places,Licences,,22/09/14,603.78 
5174461,THE PERFORMING RIGHT SOCIETY,Tameside Investment Partnership,Places,Licences,,22/09/14,593.86 
5174462,THE PERFORMING RIGHT SOCIETY,Tameside Investment Partnership,Places,Licences,,22/09/14,"3,668.00 "
5174464,THE PERFORMING RIGHT SOCIETY,Tameside Investment Partnership,Places,Licences,,22/09/14,"1,760.33 "
5174465,THE PERFORMING RIGHT SOCIETY,Tameside Investment Partnership,Places,Licences,,22/09/14,"1,879.17 "
5174489,PLAYSAFETY LIMITED,Operations,Places,General Materials,,22/09/14,"1,497.00 "
5174491,MOSSLEY PRIVATE HIRE,Technical,Places,Hired Transport,,17/09/14,"1,256.00 "
5174492,MOSSLEY PRIVATE HIRE,Technical,Places,Hired Transport,,17/09/14,"1,180.00 "
5174497,STAMFORD CARS UK LTD,Technical,Places,Hired Transport,,17/09/14,720.00 
5174501,STAMFORD CARS UK LTD,Technical,Places,Hired Transport,,17/09/14,"1,100.00 "
5174504,RADIO CABS (ASHTON)LTD,Education Services,Childrens Services,Transport Of Ola Pupils,,17/09/14,"1,755.60 "
5174505,RADIO CABS (ASHTON)LTD,Education Services,Childrens Services,Transport Of Pupils,,17/09/14,"1,040.00 "
5174508,RADIO CABS (ASHTON)LTD,Education Services,Childrens Services,Transport Of Pupils,,17/09/14,"1,316.00 "
5174509,RADIO CABS (ASHTON)LTD,Education Services,Childrens Services,Transport Of Ola Pupils,,17/09/14,"1,484.00 "
5174510,RADIO CABS (ASHTON)LTD,Education Services,Childrens Services,Transport Of Pupils,,17/09/14,696.60 
5174511,RADIO CABS (ASHTON)LTD,Education Services,Childrens Services,Transport Of Pupils,,17/09/14,"1,838.00 "
5174512,RADIO CABS (ASHTON)LTD,Education Services,Childrens Services,Transport Of Pupils,,17/09/14,945.20 
5174513,RADIO CABS (ASHTON)LTD,Education Services,Childrens Services,Transport Of Pupils,,17/09/14,"1,128.00 "
5174514,RADIO CABS (ASHTON)LTD,Technical,Places,Hired Transport,,17/09/14,666.00 
5174515,RADIO CABS (ASHTON)LTD,Education Services,Childrens Services,Transport Of Post 16 Pupils,,17/09/14,"1,072.40 "
5174518,RADIO CABS (ASHTON)LTD,Technical,Places,Hired Transport,,17/09/14,856.30 
5174524,RADIO CABS (ASHTON)LTD,Education Services,Childrens Services,Transport Of Pupils,,17/09/14,"1,786.00 "
5174525,RADIO CABS (ASHTON)LTD,Education Services,Childrens Services,Transport Of Pupils,,17/09/14,"2,127.50 "
5174527,RADIO CABS (ASHTON)LTD,Technical,Places,Hired Transport,,17/09/14,"1,032.90 "
5174570,,Children's Services,Childrens Services,Foster Carer Agency Fees,Redacted Supplier,17/09/14,"3,623.90 "
5174572,TAMESIDE ARTS LTD,Adult Services,"Community, Adult & Adults Early Intervention",Professional Services,,25/09/14,"1,193.40 "
5174574,TAMESIDE SPORTS TRUST,Adult Services,"Community, Adult & Adults Early Intervention",Professional Services,,25/09/14,"4,161.60 "
5174577,WORKS 4U SUPPORT SERVICES LIMITED,Education Services,Childrens Services,Professional Services,,18/09/14,"1,080.00 "
5174581,TAMESIDE ARTS LTD,Adult Services,"Community, Adult & Adults Early Intervention",Professional Services,,25/09/14,"1,193.40 "
5174583,WORKS 4U SUPPORT SERVICES LIMITED,Education Services,Childrens Services,Professional Services,,18/09/14,"1,800.00 "
5174584,TAMESIDE ARTS LTD,Adult Services,"Community, Adult & Adults Early Intervention",Professional Services,,25/09/14,"1,193.40 "
5174585,,Children's Services,Childrens Services,Foster Carer Agency Fees,Redacted Supplier,17/09/14,"3,623.90 "
5174589,HOWARD COOK,Education Services,Childrens Services,Professional Services,Business Payment,17/09/14,680.00 
5174590,DIOCESE OF SALFORD DFC,Tameside Investment Partnership,Places,Non-Authority Accommodation Rental,,22/09/14,"1,750.00 "
5174592,NORTH WEST COMMUNITY  SERVICES (GTR M/CR) LTD,Adult Services,"Community, Adult & Adults Early Intervention",Homecare Fees,,25/09/14,"1,061.82 "
5174596,NUTURE,Neighbourhoods & Communities,"Community, Adult & Adults Early Intervention",Emergency Grant Payments,,17/09/14,525.00 
5174631,,Children's Services,Childrens Services,Childrens Homes Outside Local Authority Fees,Redacted Supplier,29/09/14,"9,600.00 "
5174632,,Children's Services,Childrens Services,Childrens Homes Outside Local Authority Fees,Redacted Supplier,29/09/14,"9,600.00 "
5174633,NORTH WEST COMMUNITY  SERVICES (GTR M/CR) LTD,Adult Services,"Community, Adult & Adults Early Intervention",Homecare Fees,,25/09/14,"1,009.77 "
5174635,NORTH WEST COMMUNITY  SERVICES (GTR M/CR) LTD,Adult Services,"Community, Adult & Adults Early Intervention",Homecare Fees,,25/09/14,"1,499.04 "
5174636,NORTH WEST COMMUNITY  SERVICES (GTR M/CR) LTD,Adult Services,"Community, Adult & Adults Early Intervention",Homecare Fees,,25/09/14,"1,332.48 "
5174638,NORTH WEST COMMUNITY  SERVICES (GTR M/CR) LTD,Adult Services,"Community, Adult & Adults Early Intervention",Homecare Fees,,25/09/14,957.72 
5174639,NORTH WEST COMMUNITY  SERVICES (GTR M/CR) LTD,Adult Services,"Community, Adult & Adults Early Intervention",Homecare Fees,,25/09/14,"1,113.87 "
5174640,NORTH WEST COMMUNITY  SERVICES (GTR M/CR) LTD,Adult Services,"Community, Adult & Adults Early Intervention",Homecare Fees,,25/09/14,"1,717.65 "
5174641,NORTH WEST COMMUNITY  SERVICES (GTR M/CR) LTD,Adult Services,"Community, Adult & Adults Early Intervention",Homecare Fees,,25/09/14,"1,873.80 "
5174642,NORTH WEST COMMUNITY  SERVICES (GTR M/CR) LTD,Adult Services,"Community, Adult & Adults Early Intervention",Homecare Fees,,25/09/14,"1,603.14 "
5174644,NORTH WEST COMMUNITY  SERVICES (GTR M/CR) LTD,Adult Services,"Community, Adult & Adults Early Intervention",Homecare Fees,,25/09/14,"1,020.18 "
5174645,NORTH WEST COMMUNITY  SERVICES (GTR M/CR) LTD,Adult Services,"Community, Adult & Adults Early Intervention",Homecare Fees,,25/09/14,957.72 
5174646,NORTH WEST COMMUNITY  SERVICES (GTR M/CR) LTD,Adult Services,"Community, Adult & Adults Early Intervention",Homecare Fees,,25/09/14,957.72 
5174647,NORTH WEST COMMUNITY  SERVICES (GTR M/CR) LTD,Adult Services,"Community, Adult & Adults Early Intervention",Homecare Fees,,25/09/14,"1,540.68 "
5174648,NORTH WEST COMMUNITY  SERVICES (GTR M/CR) LTD,Adult Services,"Community, Adult & Adults Early Intervention",Homecare Fees,,25/09/14,"1,280.43 "
5174650,NORTH WEST COMMUNITY  SERVICES (GTR M/CR) LTD,Adult Services,"Community, Adult & Adults Early Intervention",Homecare Fees,,25/09/14,957.72 
5174653,NORTH WEST COMMUNITY  SERVICES (GTR M/CR) LTD,Adult Services,"Community, Adult & Adults Early Intervention",Homecare Fees,,25/09/14,"1,061.82 "
5174654,NORTH WEST COMMUNITY  SERVICES (GTR M/CR) LTD,Adult Services,"Community, Adult & Adults Early Intervention",Homecare Fees,,25/09/14,"1,384.94 "
5174656,NORTH WEST COMMUNITY  SERVICES (GTR M/CR) LTD,Adult Services,"Community, Adult & Adults Early Intervention",Homecare Fees,,25/09/14,"1,051.41 "
5174657,NORTH WEST COMMUNITY  SERVICES (GTR M/CR) LTD,Adult Services,"Community, Adult & Adults Early Intervention",Homecare Fees,,25/09/14,"1,488.63 "
5174665,MERIDIAN HEALTHCARE LTD,Adult Services,"Community, Adult & Adults Early Intervention",Day Centre Fees,,24/09/14,"23,747.50 "
5174666,DIGIENABLE,Neighbourhoods & Communities,"Community, Adult & Adults Early Intervention",Audio/Visual Equipment/Aids,,17/09/14,500.00 
5174669,PHS GROUP PLC,Tameside Investment Partnership,Places,Personal Hygiene Costs,,25/09/14,"1,812.20 "
5174680,MANCHESTER CITY F C IN THE COMMUNITY FOUNDATION,Education Services,Childrens Services,Professional Services,,18/09/14,"4,250.00 "
5174681,WILLOW WOOD HOSPICE,Technical,Places,Contributions,,22/09/14,"4,166.67 "
5174683,MACMILLAN CANCER SUPPORT,Technical,Places,Contributions,,24/09/14,"12,500.00 "
5174686,COMFORT CALL LIMITED,Adult Services,"Community, Adult & Adults Early Intervention",Homecare Fees,,18/09/14,"30,550.96 "
5174696,PAYPOINT COLLECTIONS LTD,Neighbourhoods & Communities,"Community, Adult & Adults Early Intervention",Emergency Grant Payments,,22/09/14,517.00 
5174704,,Children's Services,Childrens Services,Foster Care Placement Task,Redacted Supplier,18/09/14,"1,491.29 "
5174706,TRANSPORT FOR GREATER MANCHESTER,Education Services,Childrens Services,Transport Of Pupils,,22/09/14,"2,297.28 "
5174707,TRANSPORT FOR GREATER MANCHESTER,Education Services,Childrens Services,Transport Of Pupils,,22/09/14,"2,297.28 "
5174709,YOUTH JUSTICE BOARD,Children's Services,Childrens Services,Other Accomodation Related Costs,,18/09/14,"1,580.00 "
5174710,YOUTH JUSTICE BOARD,Children's Services,Childrens Services,Other Accomodation Related Costs,,18/09/14,"1,422.00 "
5174712,YOUTH JUSTICE BOARD,Children's Services,Childrens Services,Other Accomodation Related Costs,,18/09/14,"1,422.00 "
5174713,YOUTH JUSTICE BOARD,Children's Services,Childrens Services,Other Accomodation Related Costs,,18/09/14,"12,259.00 "
5174718,SPECIALISED HOMES AND LODGINGS LTD,SCYP ,Childrens Services,Living With Formal Support,,25/09/14,"3,214.28 "
5174719,STEP AHEAD RESOURCE SERVICES,SCYP ,Childrens Services,Living With Formal Support,,24/09/14,857.14 
5174721,STEP AHEAD RESOURCE SERVICES,SCYP ,Childrens Services,Living With Formal Support,,24/09/14,750.00 
5174724,ORANGE PCS,"Media, Marketing & Communications",Director of Governance,Nursery Services,,22/09/14,"3,037.23 "
5174725,ORANGE PCS,"Media, Marketing & Communications",Director of Governance,Mobile Telephones,,22/09/14,"6,782.17 "
5174727,ORANGE PCS,"Media, Marketing & Communications",Director of Governance,Mobile Telephones,,22/09/14,825.87 
5174736,INSPIREDSPACES TAMESIDE LTD,Asset Management and Investment Partnership Management,"Economic Growth, Investment and Sustainability",Refurbishment Construction Costs,,22/09/14,"15,728.22 "
5174736,INSPIREDSPACES TAMESIDE LTD,Asset Mgmt & Investment Partnership Mgmt,Places,Refreshments,,22/09/14,"15,257.89 "
5174736,INSPIREDSPACES TAMESIDE LTD,Tameside Investment Partnership,Places,Building Repairs,,22/09/14,"11,911.53 "
5174749,MANCHESTER LETTINGS LTD,Children's Services,Childrens Services,Cash Grants,,22/09/14,550.00 
5174767,,Adult Services,"Community, Adult & Adults Early Intervention",Day Care Fees,Redacted Supplier,22/09/14,672.98 
5174769,HMCTS,Children's Services,Childrens Services,Court Fees,,25/09/14,"8,220.00 "
5174774,ERIC SLATER INTERIOR DESIGN,Operations,Places,General Materials,,22/09/14,737.00 
5174796,VODAFONE,Resource Management,Director of Finance,Telephone Landline Costs,,25/09/14,753.89 
5174805,CARE UK HOMECARE,Adult Services,"Community, Adult & Adults Early Intervention",Homecare Fees,,24/09/14,"28,250.23 "
5174808,AUTUMN (UK)  LTD,Housing,"Economic Growth, Investment and Sustainability",Improvement Grants - Final Mandatory,,24/09/14,"3,596.00 "
5174812,AUTUMN (UK)  LTD,Housing,"Economic Growth, Investment and Sustainability",Improvement Grants - Final Mandatory,,24/09/14,"4,529.50 "
5174816,JACKSON & TAYLOR LTD,Housing,"Economic Growth, Investment and Sustainability",Improvement Grants - Final Mandatory,,22/09/14,"4,190.00 "
5174817,AUTUMN (UK)  LTD,Housing,"Economic Growth, Investment and Sustainability",Improvement Grants - Final Mandatory,,22/09/14,"3,812.05 "
5174819,NORTH WEST CONSTRUCTION,Housing,"Economic Growth, Investment and Sustainability",Improvement Grants - Final Mandatory,,22/09/14,"3,885.00 "
5174823,MELANDRA LANDSCAPES,Housing,"Economic Growth, Investment and Sustainability",Improvement Grants - Final Mandatory,,22/09/14,"1,781.00 "
5174825,S ROCHE,Housing,"Economic Growth, Investment and Sustainability",Improvement Grants - Final Mandatory,Business Payment,22/09/14,"4,230.00 "
5174828,BRIAN GLYNN & CO,Housing,"Economic Growth, Investment and Sustainability",Improvement Grants - Final Mandatory,,25/09/14,"4,055.00 "
5174832,AUTUMN (UK)  LTD,Housing,"Economic Growth, Investment and Sustainability",Improvement Grants - Final Mandatory,,22/09/14,"3,105.31 "
5174833,REMPLOY LIMITED,Adult Services,"Community, Adult & Adults Early Intervention",Agency Staff,,29/09/14,725.65 
5174834,REMPLOY LIMITED,Adult Services,"Community, Adult & Adults Early Intervention",Agency Staff,,29/09/14,580.52 
5174837,DOMAIN CARE NORTH WEST LTD,Adult Services,"Community, Adult & Adults Early Intervention",Homecare Fees,,29/09/14,"3,960.00 "
5174839,DOMAIN CARE NORTH WEST LTD,Adult Services,"Community, Adult & Adults Early Intervention",Homecare Fees,,29/09/14,639.60 
5174840,DOMAIN CARE NORTH WEST LTD,Adult Services,"Community, Adult & Adults Early Intervention",Homecare Fees,,29/09/14,"1,440.00 "
5174841,DOMAIN CARE NORTH WEST LTD,Adult Services,"Community, Adult & Adults Early Intervention",Homecare Fees,,29/09/14,799.50 
5174846,BERTRAM LIBRARY SERVICES,Neighbourhoods & Communities,"Community, Adult & Adults Early Intervention",Purchase Books,,22/09/14,"7,982.65 "
5174872,PAT HIGGINS LTD,Borough Solicitor,Director of Governance,Hired Transport,,22/09/14,"8,880.00 "
5174894,THE FAMILY UNIT LTD,SCYP ,Childrens Services,Living With Formal Support,,22/09/14,"3,400.00 "
5174903,THE FAMILY UNIT LTD,SCYP ,Childrens Services,Living With Formal Support,,22/09/14,"3,400.00 "
5174906,THE FAMILY UNIT LTD,SCYP ,Childrens Services,Living With Formal Support,,24/09/14,"7,521.15 "
5174909,NEW BRIDGE HORIZONS,Adult Services,"Community, Adult & Adults Early Intervention",Homecare Fees,,25/09/14,"2,080.50 "
5174910,THE FAMILY UNIT LTD,SCYP ,Childrens Services,Living With Formal Support,,22/09/14,"3,000.00 "
5174919,2 BOARDS AND A PASSION LTD,Neighbourhoods & Communities,"Community, Adult & Adults Early Intervention",Professional Entertainment Services,,22/09/14,710.00 
5174933,GREENSCAPE,Adult Services,"Community, Adult & Adults Early Intervention",Tree Planting Programme,,25/09/14,"1,237.86 "
5174946,THE GUINNESS PARTNERSHIP LTD,Adult Services,"Community, Adult & Adults Early Intervention",Non-Authority Accommodation Rental,,22/09/14,"3,903.20 "
5174948,THOMPSONAND COOKE LTD,Environmental Services,"Economic Growth, Investment and Sustainability",Acquisition - Buildings,,24/09/14,"117,000.00 "
5174952,TAMESIDE CITIZENS ADVICE BUREAU,Exchequer,Director of Finance,Professional Services,,25/09/14,"3,500.00 "
5174953,TAMESIDE CITIZENS ADVICE BUREAU,Exchequer,Director of Finance,Professional Services,,25/09/14,"3,500.00 "
5174969,,Adult Services,"Community, Adult & Adults Early Intervention",Homecare Fees,Redacted Supplier,24/09/14,505.83 
5174971,MIDLAND SOFTWARE LTD,People & Performance,Director of Governance,Computer Software,,24/09/14,"2,500.00 "
5174973,,Adult Services,"Community, Adult & Adults Early Intervention",Contribution to Maintenance Fee Income,Redacted Supplier,24/09/14,520.67 
5174986,HMRC,Multiple Heads of Service,Multiple Strategic Directorates,Tax Paid Sub Contractors,,29/09/14,"3,936.53 "
5175006,INTACT PROJECTS LIMITED,Children's Services,Childrens Services,Living With Formal Support,,22/09/14,949.00 
5175011,ERIC SLATER INTERIOR DESIGN,Operations,Places,Painting Works,,24/09/14,"1,685.00 "
5175026,D WOODMAN BUILDERS,Housing,"Economic Growth, Investment and Sustainability",Improvement Grants - Final Mandatory,,24/09/14,"1,000.00 "
5175028,STOCKPORT NHS FOUNDATION TRUST,Adult Services,"Community, Adult & Adults Early Intervention",Agency Staff,,22/09/14,"2,977.08 "
5175056,CREATIVE IDEAS IN PRINT LTD,"Media, Marketing & Communications",Director of Governance,Printing And Stationery,,29/09/14,"1,625.00 "
5175062,INTACT PROJECTS LIMITED,Children's Services,Childrens Services,Living With Formal Support,,24/09/14,910.00 
5175063,PROFFITTS CIC,Operations,Places,Professional Consultancy Services,,22/09/14,"1,236.25 "
5175066,INTEC FOR BUSINESS LTD,Audit & Risk Management,Director of Finance,Project Expenditure Home Office,,24/09/14,"7,750.00 "
5175067,NSL LIMITED,Technical,Places,NSL Fees,,25/09/14,"52,244.84 "
5175092,INTACT PROJECTS LIMITED,Children's Services,Childrens Services,Living With Formal Support,,22/09/14,949.00 
5175101,GEORGE COX & SONS LTD,Engineers Client,"Economic Growth, Investment and Sustainability",Engineers -External,,24/09/14,"5,083.79 "
5175118,ULVERSCROFT LARGE PRINT  BOOKS LTD,Neighbourhoods & Communities,"Community, Adult & Adults Early Intervention",Purchase Books,,29/09/14,"1,866.28 "
5175144,ROBINSON & JORDAN FUNERAL SERVICES,Environmental Services,Places,Burial Fees,,24/09/14,"1,539.00 "
5175145,ROBINSON & JORDAN FUNERAL SERVICES,Environmental Services,Places,Burial Fees,,24/09/14,"1,385.00 "
5175153,W V HOWE LIMITED,Asset Mgmt & Investment Partnership Mgmt,Places,Purchase Light Catering Equipment,,24/09/14,715.44 
5175187,QUEST MEDIA NETWORKS LTD,"Media, Marketing & Communications",Director of Governance,Statutory Advertising,,29/09/14,547.60 
5175191,HOWARD COOK,Education Services,Childrens Services,Professional Services,Business Payment,24/09/14,680.00 
5175192,RADIO CABS (ASHTON)LTD,Education Services,Childrens Services,Transport Of Pupils,,24/09/14,"1,543.00 "
5175196,RADIO CABS (ASHTON)LTD,Education Services,Childrens Services,Transport Of Pupils,,24/09/14,"1,840.00 "
5175197,RADIO CABS (ASHTON)LTD,Children's Services,Childrens Services,Hired Transport,,24/09/14,"1,164.80 "
5175200,RADIO CABS (ASHTON)LTD,Education Services,Childrens Services,Transport Of Ola Pupils,,24/09/14,"1,532.00 "
5175201,RADIO CABS (ASHTON)LTD,Technical,Places,Hired Transport,,24/09/14,507.50 
5175202,RADIO CABS (ASHTON)LTD,Education Services,Childrens Services,Transport Of Pupils,,24/09/14,825.60 
5175203,RADIO CABS (ASHTON)LTD,Education Services,Childrens Services,Transport Of Pupils,,24/09/14,"1,504.00 "
5175204,RADIO CABS (ASHTON)LTD,Education Services,Childrens Services,Transport Of Pupils,,24/09/14,"1,280.00 "
5175208,RADIO CABS (ASHTON)LTD,Education Services,Childrens Services,Transport Of Post 16 Pupils,,24/09/14,"1,280.00 "
5175209,RADIO CABS (ASHTON)LTD,Education Services,Childrens Services,Transport Of Ola Pupils,,24/09/14,"1,590.00 "
5175211,RADIO CABS (ASHTON)LTD,Education Services,Childrens Services,Transport Of Post 16 Pupils,,24/09/14,638.82 
5175212,RADIO CABS (ASHTON)LTD,Technical,Places,Hired Transport,,24/09/14,812.80 
5175213,RADIO CABS (ASHTON)LTD,Education Services,Childrens Services,Transport Of Pupils,,24/09/14,"1,504.00 "
5175215,RADIO CABS (ASHTON)LTD,Education Services,Childrens Services,Transport Of Pupils,,24/09/14,"1,504.00 "
5175217,RADIO CABS (ASHTON)LTD,Technical,Places,Hired Transport,,24/09/14,592.00 
5175219,RADIO CABS (ASHTON)LTD,Children's Services,Childrens Services,Hired Transport,,24/09/14,"1,388.80 "
5175248,CYCLESCHEME LTD,Multiple Heads of Service,Multiple Strategic Directorates,Debits,,24/09/14,906.63 
5175254,SOFTCAT LIMITED,Digital Tameside,Places,Computer Software,,24/09/14,"8,400.00 "
5175257,YOTTA LIMITED,Engineers Client,"Economic Growth, Investment and Sustainability",Engineers -External,,25/09/14,"5,833.79 "
5175270,,Adult Services,"Community, Adult & Adults Early Intervention",Residential Home Short Stay Fees,Redacted Supplier,24/09/14,883.26 
5175278, ,Adult Services,"Community, Adult & Adults Early Intervention",Contribution to Maintenance Fee Income,Redacted Supplier,24/09/14,802.63 
5175334,LORETO SIXTH FORM COLLEGE,Education Services,Childrens Services,Professional Services,,29/09/14,"8,000.00 "
5175335,NHS TAMESIDE AND GLOSSOP CCG,Adult Services,"Community, Adult & Adults Early Intervention",Professional Services,,29/09/14,"101,369.00 "
5175338,NEW BRIDGE HORIZONS,Adult Services,"Community, Adult & Adults Early Intervention",Homecare Fees,,25/09/14,"1,751.25 "
5175341,CREATIVE SUPPORT LTD,Adult Services,"Community, Adult & Adults Early Intervention",Residential Home Long Stay Fees,,24/09/14,"1,661.52 "
5175348,PROPERTY GENIUS,Neighbourhoods & Communities,"Community, Adult & Adults Early Intervention",Emergency Grant Payments,,24/09/14,"1,000.00 "
5175353,INFORMATION COMMISSIONERS OFFICE CONFERENCE,Borough Solicitor,Director of Governance,Subscriptions,,25/09/14,500.00 
5175363,PATRICIA BUXTON,Children's Services,Childrens Services,Professional Medical Services,Business Payment,29/09/14,"1,475.80 "
5175365,CARE UK HOMECARE,Adult Services,"Community, Adult & Adults Early Intervention",Homecare Fees,,24/09/14,"32,260.07 "
5175366,CARE UK HOMECARE,Adult Services,"Community, Adult & Adults Early Intervention",Homecare Fees,,24/09/14,"27,700.16 "
5175368,BEN HALL TREE SURGEONS,Neighbourhoods & Communities,"Community, Adult & Adults Early Intervention",General Materials,,29/09/14,530.00 
5175389,W V HOWE LIMITED,Asset Mgmt & Investment Partnership Mgmt,Places,Purchase Light Catering Equipment,,29/09/14,579.19 
5175401,MR CAIN ORMONDROYD,Exchequer,Director of Finance,Legal Fees,Business Payment,24/09/14,"1,000.00 "
5175414,GREYSTONES TAMESIDE LTD,Neighbourhoods & Communities,"Community, Adult & Adults Early Intervention",Supporting People Gross Contract,,24/09/14,"8,333.33 "
5175418,GREYSTONES TAMESIDE LTD,Neighbourhoods & Communities,"Community, Adult & Adults Early Intervention",Supporting People Gross Contract,,25/09/14,"14,212.87 "
5175419,,Adult Services,"Community, Adult & Adults Early Intervention",Contribution to Maintenance Fee Income,Redacted Supplier,29/09/14,522.76 
5175420,,Adult Services,"Community, Adult & Adults Early Intervention",Contribution to Maintenance Fee Income,Redacted Supplier,29/09/14,509.78 
5175423,,Adult Services,"Community, Adult & Adults Early Intervention",Contribution to Maintenance Fee Income,Redacted Supplier,29/09/14,"1,055.31 "
5175428,INTEC FOR BUSINESS LTD,Audit & Risk Management,Director of Finance,Project Expenditure Home Office,,24/09/14,"2,800.00 "
5175445,,Adult Services,"Community, Adult & Adults Early Intervention",Residential Home Short Stay Fees,Redacted Supplier,25/09/14,588.84 
5175467,,Children's Services,Childrens Services,Foster Carer Agency Fees,Redacted Supplier,24/09/14,"3,407.14 "
5175499,COMFORT CALL LIMITED,Adult Services,"Community, Adult & Adults Early Intervention",Homecare Fees,,29/09/14,"28,322.35 "
5175522,ABLE CARE AND SUPPORT SERVICES LTD,Adult Services,"Community, Adult & Adults Early Intervention",Homecare Fees,,25/09/14,"2,045.15 "
5175532,ALLIED HEALTHCARE GROUP LTD (MEDICO),Adult Services,"Community, Adult & Adults Early Intervention",Homecare Fees,,25/09/14,"9,253.41 "
5175537,ALLIED HEALTHCARE GROUP LTD (MEDICO),Adult Services,"Community, Adult & Adults Early Intervention",Homecare Fees,,25/09/14,"9,953.78 "
5175588,LANCASHIRE COUNTY COUNCIL,NWEGG,Places,Room Hire,,29/09/14,528.00 
5175689,ELECTRICITY NORTH WEST LTD,Technical,Places,Reactive Works Engineers Recharge,,29/09/14,609.99 
5175690,ELECTRICITY NORTH WEST LTD,Technical,Places,Reactive Works Engineers Recharge,,29/09/14,609.99 
5175691,ELECTRICITY NORTH WEST LTD,Technical,Places,Reactive Works Engineers Recharge,,29/09/14,609.99 
5175693,ELECTRICITY NORTH WEST LTD,Technical,Places,Reactive Works Engineers Recharge,,29/09/14,609.99 
5175694,ELECTRICITY NORTH WEST LTD,Technical,Places,Reactive Works Engineers Recharge,,29/09/14,609.99 
5175695,ELECTRICITY NORTH WEST LTD,Technical,Places,Reactive Works Engineers Recharge,,29/09/14,609.99 
5175696,ELECTRICITY NORTH WEST LTD,Technical,Places,Reactive Works Engineers Recharge,,29/09/14,609.99 
5175697,ELECTRICITY NORTH WEST LTD,Technical,Places,Reactive Works Engineers Recharge,,29/09/14,609.99 
5175698,ELECTRICITY NORTH WEST LTD,Technical,Places,Reactive Works Engineers Recharge,,29/09/14,609.99 
5175699,ELECTRICITY NORTH WEST LTD,Technical,Places,Reactive Works Engineers Recharge,,29/09/14,609.99 
5175700,ELECTRICITY NORTH WEST LTD,Technical,Places,Reactive Works Engineers Recharge,,29/09/14,609.99 
5175711,BT PLC,Operations,Places,Telephone Landline Costs,,29/09/14,"1,668.75 "
5175743,OPEN STUDY COLLEGE,Adult Services,"Community, Adult & Adults Early Intervention",Training Course Costs,,29/09/14,865.00 
5175775,MATTHEW COOKE T/A THE TRAINING CO,People & Performance,Director of Governance,Training Course Costs,,29/09/14,712.00 
5175776,CGIS WEST POINT LTD,Other Services,Director of Finance,Non-Authority Accommodation Rental,,29/09/14,"6,414.94 "
5175777,MATTHEW COOKE T/A THE TRAINING CO,People & Performance,Director of Governance,Training Course Costs,,29/09/14,617.00 
5175802,CREATIVE IDEAS IN PRINT LTD,"Media, Marketing & Communications",Director of Governance,Printing And Stationery,,29/09/14,"1,497.85 "
5175833,ELECTRICITY NORTH WEST LTD,Technical,Places,Reactive Works Engineers Recharge,,29/09/14,609.99 
5175897,,Children's Services,Childrens Services,Foster Carer Agency Fees,Redacted Supplier,29/09/14,799.00 
5175900,,Children's Services,Childrens Services,Foster Carer Agency Fees,Redacted Supplier,29/09/14,"4,340.00 "
5175945,,Children's Services,Childrens Services,Childrens Homes Outside Local Authority Fees,Redacted Supplier,29/09/14,"8,414.00 "
5175946,,Children's Services,Childrens Services,Childrens Homes Outside Local Authority Fees,Redacted Supplier,29/09/14,"8,414.00 "
5175957,,Children's Services,Childrens Services,Childrens Homes Outside Local Authority Fees,Redacted Supplier,29/09/14,"5,168.03 "
29000016,ASDA PHARMACY,Public Health,Public Health,Local Enhanced Services,,24/09/14,517.00 
29000016,BEDFORD HOUSE MEDICAL CENTRE,Public Health,Public Health,Local Enhanced Services,,24/09/14,595.90 
29000016,BOOTS UK LTD,Public Health,Public Health,Local Enhanced Services,,24/09/14,"2,611.00 "
29000016,CHAPEL STREET MEDICAL CENTRE,Public Health,Public Health,Local Enhanced Services,,24/09/14,593.50 
29000016,DRS J PROCTER & D MARR,Public Health,Public Health,Local Enhanced Services,Business Payment,24/09/14,952.00 
29000016,GROSVENOR MEDICAL CENTRE,Public Health,Public Health,Local Enhanced Services,,24/09/14,563.50 
29000016,HAUGHTON-THORNLEY MEDICAL CENTRE,Public Health,Public Health,Local Enhanced Services,,24/09/14,"1,475.80 "
29000016,HIGHLANDS & TRAFALGAR SQUARE SURGERY,Public Health,Public Health,Local Enhanced Services,,24/09/14,"1,065.00 "
29000016,LLOYDS PHARMACY LTD,Public Health,Public Health,Local Enhanced Services,,24/09/14,"3,405.71 "
29000016,LOCKSIDE MEDICAL CENTRE,Public Health,Public Health,Local Enhanced Services,,24/09/14,695.50 
29000016,MEDICX PHARMACY,Public Health,Public Health,Local Enhanced Services,,24/09/14,"1,449.00 "
29000016,S F WAIN & SONS LTD,Public Health,Public Health,Local Enhanced Services,,24/09/14,"1,202.49 "
29000016,ST ANDREWS HOUSE MEDICAL CENTRE,Public Health,Public Health,Local Enhanced Services,,24/09/14,"1,054.40 "
29000016,STAMFORD HOUSE MEDICAL CENTRE,Public Health,Public Health,Local Enhanced Services,,24/09/14,714.00 
29000016,THE BROOKE SURGERY,Public Health,Public Health,Local Enhanced Services,,24/09/14,"1,368.00 "
29000016,THE CO-OP PHARMACY,Public Health,Public Health,Local Enhanced Services,,24/09/14,"3,419.67 "
29000016,WEST END MEDICAL PRACTICE,Public Health,Public Health,Local Enhanced Services,,24/09/14,622.00 
29000016,WINDMILL MEDICAL PRACTICE,Public Health,Public Health,Local Enhanced Services,,24/09/14,920.20 
 ,CAPITA - BENEFIT PAYMENTS,Exchequer,Director of Finance,Housing Benefit Payments,,,"7,815,670.80 "
,HAYS SPECIALIST RECRUITMENT GROUP,Multiple Heads of Service,Multiple Strategic Directorates,,,,"80,721.93 "
,CARE RELATED PAYMENTS,Multiple Heads of Service,Multiple Strategic Directorates,,,,"369,283.24 "
